Cogmind - Beta 11.1 @@@ ROGUE MODE // 2022.09.19 @ 14:58:02 // AFD2019/Pay2Buy Player: Benkyo Result: Escaped! Performance ------------- Evolutions (9) 4500 Regions Visited (33) 6600 Robots Destroyed (752) 3760 Value Destroyed (42614) 42614 Prototype IDs (72) 1440 Alien Tech Used (0) 0 Bonus (31051) 31051 TOTAL SCORE: 89965 Bonus ------- Triggered High Security 1000 High Alert Combat Kills 23859 Follower Combat Kills 783 Network Hubs Disabled 200 Aligned with FarCom 300 Met Data Miner 300 Met Imprinter 300 Met Warlord at Base 500 MAIN.C Attacked Warlord 500 Warlord Defense Kills 1650 Win 3000 Friendly Fire -1341 Cogmind --------- Core Integrity 1547/1600 Matter 300/300 Energy 1076/1090 System Corruption 1% Temperature Cool (6) Movement Treading (225) Ox1 Location To Epsilon Eridani Parts ------- > --- POWER (4) -------- Graviton Reactor Quantum Reactor Quantum Reactor Improved Quantum Reactor > --- PROPULSION (4) --- Biometal Heavy Treads Biometal Heavy Treads > --- UTILITY (14) ----- Experimental Cooling System Advanced Coolant Injector Advanced Terrain Scan Processor Advanced Targeting Computer Experimental Core Analyzer Energy Filter Quantum Capacitor Advanced Transmission Jammer Experimental Cloaking Device Centrium Heavy Armor Plating Advanced Force Field Experimental Force Field > --- WEAPON (3) ------- Compact HERF Cannon Enhanced Nova Cannon CR-A16's Behemoth Slayer > --- INVENTORY (10) --- Experimental Energy Well (600) Launcher Loader Experimental Shield Generator Advanced System Restoration Module Long-range Tractor Beam Hacking Drone Bay (1/1) Graviton Cannon Graviton Cannon Graviton Cannon Peak State ------------ > --- POWER ------------ Graviton Reactor Quantum Reactor Quantum Reactor Improved Quantum Reactor > --- PROPULSION ------- Biometal Heavy Treads Biometal Heavy Treads > --- UTILITY ---------- Experimental Cooling System Advanced Coolant Injector Advanced Terrain Scan Processor Advanced Targeting Computer Experimental Core Analyzer Energy Filter Quantum Capacitor Advanced Transmission Jammer Experimental Cloaking Device Centrium Heavy Armor Plating Advanced Force Field Experimental Force Field > --- WEAPON ----------- Compact HERF Cannon Enhanced Nova Cannon CR-A16's Behemoth Slayer > --- INVENTORY -------- Experimental Energy Well Launcher Loader Experimental Shield Generator Advanced System Restoration Module Long-range Tractor Beam Hacking Drone Bay Graviton Cannon Graviton Cannon Graviton Cannon [Rating: 209] Favorites ----------- Power Particle Reactor Engine Heavy Deuterium Engine Power Core Enhanced Fission Core Reactor Particle Reactor Propulsion Armored Huge Wheel Treads Medium Treads Wheel Armored Huge Wheel Utility Layered Heavy Armor Plating Device Improved Sensor Array Processor Experimental Targeting Computer Hackware Makeshift Hacking Suite Protection Layered Heavy Armor Plating Weapon Magnetic Acceleration Cannon Energy Cannon Cooled Plasma Cannon Ballistic Cannon Magnetic Acceleration Cannon Launcher Tiamat Missile Launcher Impact Weapon Heavy Flail Piercing Weapon CR-A16's Behemoth Slayer Build | -11 -10 -9 -9 -9 -8 -8 -7 -7 -7 -7 -6 -6 -6 -6 -6 -5 -5 -5 -5 -5 -4 -4 -4 -4 -4 -4 -4 -4 -3 -3 -3 -2 -1 ------- Run | Scr Mat Mat Min Exi Min Mat Fac Low Low Dat Pro Fac Low Low Zio Pro Fac Upp Upp War Pro Fac Was Fac Ext Cet Arc Hub Res Arm Lab Res Acc Slots Evolved 18 | . . 2 . . . 2 2 . . . . 2 . . . . 2 . . . . 2 . . . . . . 2 . . 2 2 Power 3 | . . . . . . . . . . . . 1 . . . . . . . . . . . . . . . . 1 . . 1 . Propulsion 2 | . . . . . . 1 1 . . . . . . . . . . . . . . . . . . . . . . . . . . Utility 12 | . . 2 . . . 1 1 . . . . 1 . . . . 2 . . . . 2 . . . . . . 1 . . . 2 Weapon 1 | . . . . . . . . . . . . . . . . . . . . . . . . . . . . . . . . 1 . Parts Attached 130 | . . 1 2 . 1 17 18 14 . . . 6 11 . 4 . . . . . 11 . . 9 6 1 1 9 3 3 1 2 10 Power 2 | . . . . . . . . . . . . . . . . . . . . . . . . . . . . . . . . 1 1 Engine . | . . . . . . . . . . . . . . . . . . . . . . . . . . . . . . . . . . Core . | . . . . . . . . . . . . . . . . . . . . . . . . . . . . . . . . . . Reactor 2 | . . . . . . . . . . . . . . . . . . . . . . . . . . . . . . . . 1 1 Propulsion 3 | . . . . . . . 1 . . . . . . . . . . . . . . . . . . . . . . 1 . . 1 Treads 3 | . . . . . . . 1 . . . . . . . . . . . . . . . . . . . . . . 1 . . 1 Leg . | . . . . . . . . . . . . . . . . . . . . . . . . . . . . . . . . . . Wheel . | . . . . . . . . . . . . . . . . . . . . . . . . . . . . . . . . . . Hover . | . . . . . . . . . . . . . . . . . . . . . . . . . . . . . . . . . . Flight . | . . . . . . . . . . . . . . . . . . . . . . . . . . . . . . . . . . Utility 79 | . . 1 . . 1 9 2 12 . . . 4 2 . 4 . . . . . 8 . . 9 6 1 1 7 2 2 1 . 7 Device 74 | . . 1 . . 1 7 1 10 . . . 4 2 . 4 . . . . . 8 . . 9 6 1 1 7 2 2 1 . 7 Storage . | . . . . . . . . . . . . . . . . . . . . . . . . . . . . . . . . . . Processor . | . . . . . . . . . . . . . . . . . . . . . . . . . . . . . . . . . . Hackware . | . . . . . . . . . . . . . . . . . . . . . . . . . . . . . . . . . . Protection 5 | . . . . . . 2 1 2 . . . . . . . . . . . . . . . . . . . . . . . . . Artifact . | . . . . . . . . . . . . . . . . . . . . . . . . . . . . . . . . . . Weapon 46 | . . . 2 . . 8 15 2 . . . 2 9 . . . . . . . 3 . . . . . . 2 1 . . 1 1 Energy Gun . | . . . . . . . . . . . . . . . . . . . . . . . . . . . . . . . . . . Energy Cannon 5 | . . . . . . . . 1 . . . . 1 . . . . . . . 1 . . . . . . . 1 . . . 1 Ballistic Gun . | . . . . . . . . . . . . . . . . . . . . . . . . . . . . . . . . . . Ballistic Cannon 18 | . . . 1 . . 4 7 . . . . 2 4 . . . . . . . . . . . . . . . . . . . . Launcher 9 | . . . 1 . . 2 1 . . . . . 3 . . . . . . . . . . . . . . 2 . . . . . Special Weapon . | . . . . . . . . . . . . . . . . . . . . . . . . . . . . . . . . . . Impact Weapon 12 | . . . . . . 2 7 1 . . . . 1 . . . . . . . 1 . . . . . . . . . . . . Slashing Weapon . | . . . . . . . . . . . . . . . . . . . . . . . . . . . . . . . . . . Piercing Weapon 2 | . . . . . . . . . . . . . . . . . . . . . 1 . . . . . . . . . . 1 . Special Melee Weapon . | . . . . . . . . . . . . . . . . . . . . . . . . . . . . . . . . . . Unidentified Prototypes 1 | . . . . . . . . . . . . . . . 1 . . . . . . . . . . . . . . . . . . Parts Lost 99 | . 1 7 . . 2 8 9 3 2 . 2 4 3 4 . . . . . 1 11 . 1 11 6 1 . 8 4 3 . 2 6 Power 15 | . . . . . 1 1 . 1 . . 1 . . 1 . . . . . . 2 . . 3 1 . . 2 . . . . 2 Propulsion 21 | . . 2 . . . 3 3 1 . . 1 . 1 1 . . . . . . 2 . . 2 2 . . . . 1 . 1 1 Utility 45 | . 1 3 . . 1 3 4 1 2 . . 2 . 2 . . . . . . 5 . 1 4 2 1 . 4 4 1 . 1 3 Weapon 18 | . . 2 . . . 1 2 . . . . 2 2 . . . . . . 1 2 . . 2 1 . . 2 . 1 . . . Highest Loss Streak 7 | . 1 3 . . 1 2 5 2 1 . 1 1 2 3 . . . . . 1 7 . 1 5 2 1 . 3 4 3 . 2 3 To Critical Strikes 1 | . . 1 . . . . . . . . . . . . . . . . . . . . . . . . . . . . . . . Average Slot Usage (%) 77 | . 83 70 77 77 76 79 88 86 78 84 77 79 74 80 80 80 76 76 76 76 74 73 70 72 71 69 68 73 79 79 80 78 81 Engine 2 | . . . . . 8 8 7 7 7 7 6 6 6 1 . . . . . . . . . . . . . . . . . . . Core 3 | . . 4 11 11 1 . . . . . . 6 6 11 13 13 11 11 11 11 7 . . . . . . . . . . . . Reactor 3 | . . . . . . . . . . . . . . . . . . . . . 3 10 10 10 10 10 10 10 14 14 14 17 15 Treads 11 | . 28 22 22 22 22 24 15 15 15 15 8 6 6 4 . . . . . . . . . 6 10 10 10 10 9 9 9 8 8 Wheel 4 | . . . . . . . 7 7 7 7 7 6 6 7 13 13 11 11 11 11 10 10 10 3 . . . . . . . . . Device 21 | . 12 11 11 11 11 14 28 23 17 23 23 25 21 26 26 26 23 23 23 23 22 26 23 21 19 16 20 23 27 32 36 25 27 Processor 7 | . . . . . . . 4 7 7 7 7 6 6 6 6 6 11 11 11 11 11 10 10 14 15 15 15 14 13 9 5 13 13 Protection 7 | . 13 11 11 11 11 14 7 9 7 7 7 6 6 6 6 6 5 5 5 5 5 5 5 5 5 5 5 5 4 4 4 4 4 Energy Cannon 4 | . . . . . . . . 3 7 7 7 3 2 6 6 6 5 5 5 5 4 10 10 6 5 5 5 6 9 8 9 8 8 Ballistic Cannon 8 | . 28 21 21 22 22 17 14 10 7 7 7 8 10 6 6 6 5 5 5 5 3 . . . . . . . . . . . . Naked Turns . | . . . . . . . . . . . . . . . . . . . . . . . . . . . . . . . . . . Heaviest Build 155 | 15 16 36 36 35 43 66 58 55 52 52 52 74 74 75 75 75 75 75 75 81 80 95 95 111 111 107 101 111 116 110 118 137 155 Greatest Support 160 | 46 46 46 44 44 44 84 60 28 28 28 28 28 28 56 56 56 56 56 56 56 56 56 56 150 160 160 160 160 150 150 150 150 150 Greatest Overweight (x) 2 | . . . . . . . 2 1 1 1 1 2 2 2 1 1 1 1 1 1 1 1 1 1 . . . . . . . . 1 Average Overweight (x) . | . . . . . . . 1 1 1 1 1 2 2 1 1 1 1 1 1 1 . 1 1 . . . . . . . . . . Largest Inventory Capacity 10 | 10 10 10 10 10 10 10 10 10 10 10 10 10 10 10 10 10 10 10 10 10 10 10 10 10 10 10 10 10 10 10 10 10 10 Average Capacity 10 | 10 10 10 10 10 10 10 10 10 10 10 10 10 10 10 10 10 10 10 10 10 10 10 10 10 10 10 10 10 10 10 10 10 10 Most Carried 10 | . . 2 7 7 10 8 7 9 8 8 8 8 7 10 10 10 10 10 10 10 8 6 6 10 9 8 8 10 9 10 10 10 10 Average Carried 6 | . . . 4 7 7 6 5 7 8 8 8 6 6 4 9 10 10 9 10 6 6 6 6 7 8 7 7 8 8 7 7 9 8 Final Capacity 10 | 10 10 10 10 10 10 10 10 10 10 10 10 10 10 10 10 10 10 10 10 10 10 10 10 10 10 10 10 10 10 10 10 10 10 Final Carried 10 | . . 2 7 7 10 4 7 8 8 8 8 5 4 10 10 10 10 10 10 7 5 6 6 9 8 8 8 10 9 7 10 10 10 Class Distribution -------------------- 86% | Mutant 5% | Generator-Mutant 3% | Skirmisher 3% | Generator-Assassin Dominant Class ---------------- Mutant | -10/Materials Mutant | -9/Materials Mutant | -9/Mines Mutant | -9/Exiles Mutant | -8/Mines Mutant | -8/Materials Mutant | -7/Factory Mutant | -7/Lower Caves Mutant | -7/Lower Caves Mutant | -7/Data Miner Mutant | -6/Proximity Caves Mutant | -6/Factory Mutant | -6/Lower Caves Mutant | -6/Lower Caves Mutant | -6/Zion Mutant | -5/Proximity Caves Mutant | -5/Factory Mutant | -5/Upper Caves Mutant | -5/Upper Caves Mutant | -5/Warlord Mutant | -4/Proximity Caves Mutant | -4/Factory Mutant | -4/Waste Mutant | -4/Factory Mutant | -4/Extension Mutant | -4/Cetus Mutant | -4/Archives Mutant | -4/Hub_04(d) Generator-Mutant | -3/Research Generator-Mutant | -3/Armory Generator-Mutant | -3/Lab Generator-Mutant | -2/Research Generator-Assassin | -1/Access Resources | -11 -10 -9 -9 -9 -8 -8 -7 -7 -7 -7 -6 -6 -6 -6 -6 -5 -5 -5 -5 -5 -4 -4 -4 -4 -4 -4 -4 -4 -3 -3 -3 -2 -1 ----------- Run | Scr Mat Mat Min Exi Min Mat Fac Low Low Dat Pro Fac Low Low Zio Pro Fac Upp Upp War Pro Fac Was Fac Ext Cet Arc Hub Res Arm Lab Res Acc Matter Collected 14840 | . 494 1008 210 . 190 2228 1108 504 301 . 235 383 775 310 . 104 . 6 . 60 138 . 6 3113 2284 124 292 782 30 20 . 28 107 Remotely 9376 | . 480 847 . . 109 654 1089 77 . . . . . . . . . . . . . . . 3083 2245 99 . 693 . . . . . Salvage Created 26511 | . 387 998 90 . 106 1747 988 317 662 . 259 485 867 774 . 15 659 364 781 828 302 125 74 4625 3403 151 303 1984 261 1838 . 266 2852 Parts . | . . . . . . . . . . . . . . . . . . . . . . . . . . . . . . . . . . Haulers Intercepted 1 | . . . . . . . . . . . . 1 . . . . . . . . . . . . . . . . . . . . . Recyclers Shooed . | . . . . . . . . . . . . . . . . . . . . . . . . . . . . . . . . . . Parts Field Recycled . | . . . . . . . . . . . . . . . . . . . . . . . . . . . . . . . . . . Retrieved Matter . | . . . . . . . . . . . . . . . . . . . . . . . . . . . . . . . . . . Parts Self-Destructed . | . . . . . . . . . . . . . . . . . . . . . . . . . . . . . . . . . . Prevented . | . . . . . . . . . . . . . . . . . . . . . . . . . . . . . . . . . . Kills | -11 -10 -9 -9 -9 -8 -8 -7 -7 -7 -7 -6 -6 -6 -6 -6 -5 -5 -5 -5 -5 -4 -4 -4 -4 -4 -4 -4 -4 -3 -3 -3 -2 -1 ------- Run | Scr Mat Mat Min Exi Min Mat Fac Low Low Dat Pro Fac Low Low Zio Pro Fac Upp Upp War Pro Fac Was Fac Ext Cet Arc Hub Res Arm Lab Res Acc Combat Hostiles Destroyed 686 | . 16 31 8 . 6 59 27 7 16 . 8 8 25 15 . 1 13 8 12 13 8 3 1 151 132 4 4 45 5 26 . 4 30 Cannons 352 | . 16 31 5 . 6 50 23 6 15 . 6 8 18 14 . 1 7 8 10 9 6 3 . 38 5 1 3 23 5 16 . 3 16 AOE 270 | . . . 3 . . 9 4 . . . . . 7 . . . 4 . . . . . . 103 125 . . 15 . . . . . Classes Destroyed 28 | . 4 5 1 . 1 3 2 3 . . . 2 . 1 . . . . . 4 . . 1 1 . . . . . . . . . Worker 16 | . . 1 . . . 1 4 . . . . 1 . . . . 2 . . . . 3 . . 4 . . . . . . . . Builder 17 | . . . . . 1 3 2 . . . . 1 . . . . 1 . . . . . . 4 4 . . 1 . . . . . Tunneler 7 | . . . . . . 1 1 . . . . . . . . . 2 . . . . . . 1 2 . . . . . . . . Hauler 1 | . . . . . . . . . . . . 1 . . . . . . . . . . . . . . . . . . . . . Recycler 7 | . . . . . . . 1 . . . . . . . . . . . . . . . . . 5 . . 1 . . . . . Minesweeper 3 | . . . . . . . . 1 . . . . 1 1 . . . . . . . . . . . . . . . . . . . Mechanic 17 | . . 1 . . . 3 . . . . . . . 1 . . . . . . . . . 5 6 . . 1 . . . . . Operator 12 | . 2 . . . . . 2 . . . . . . . . . 1 . . . . . . . . . 6 1 . . . . . Watcher 28 | . 2 4 . . . 4 3 . . . . 1 . . . . 1 . . . . 1 . 2 1 1 . 2 . 1 . 1 4 Swarmer 87 | . 6 6 5 . 3 4 3 . 2 . 2 . 11 1 . 1 4 4 1 1 1 . . 4 12 . . . 3 6 . 3 4 Saboteur 15 | . . . . . . . . . . . . . . . . . . . . . . . . 11 4 . . . . . . . . Grunt 247 | . 10 11 1 . 2 40 14 . 4 . 1 5 11 7 . . 6 . 4 6 1 . . 61 43 . . 13 . 4 . . 3 Brawler 37 | . . 1 1 . . 1 1 . 1 . . . 1 2 . . 1 . . . . . . 12 12 . . 3 . . . . 1 Duelist 42 | . . 3 . . 1 2 2 . 1 . . . 1 2 . . . . . . . . . 10 16 . . 4 . . . . . Protector 22 | . . . . . . 1 . . . . . . . . . . . . . 1 2 . . 6 10 . . 2 . . . . . Sentry 67 | . . 10 . . . 8 5 1 2 . 1 1 1 1 . . 2 1 1 . 2 . . 7 10 . 4 6 . 1 . . 3 Demolisher 6 | . . . 1 . . . . . . . . . . . . . . . . 1 1 . . . 3 . . . . . . . . Specialist 14 | . . . . . . . . 3 . . . . . . . . . . . . . . . . 3 . . 4 2 2 . . . Hunter 62 | . . . . . . 3 1 2 2 . 4 . . . . . . 2 4 1 . . . 16 11 . . 4 . 5 . . 7 Programmer 65 | . . . . . . . 1 1 . . . 1 . 1 . . . 1 2 . . 3 . 24 8 . . 8 . 7 . . 8 Heavy 3 | . . . . . . . . . . . . 1 . . . . . . . . . . . . . . . 1 . 1 . . . Behemoth 7 | . . . . . . . . . . . . . . . . . . . . 1 1 . . . . . . . . . . 1 4 Compactor 1 | . . . . . . . . . . . . . . . . . . . . . . . 1 . . . . . . . . . . Cetus Guard 4 | . . . . . . . . . . . . . . . . . . . . . . . . . . 4 . . . . . . . Striker 1 | . . . . . . . . . . . . . . . . . . . . 1 . . . . . . . . . . . . . Executioner 1 | . . . . . . . . . . . . . . . . . . . . 1 . . . . . . . . . . . . . Samaritan 2 | . . . . . . . . 2 . . . . . . . . . . . . . . . . . . . . . . . . . Thief 1 | . . . . . . . . . . . . . . 1 . . . . . . . . . . . . . . . . . . . Thug 3 | . . . . . . . . . 1 . . . . . . . . . . . . . . . 2 . . . . . . . . Savage 4 | . . . . . . . . . 3 . . . . . . . . . . . . . . . 1 . . . . . . . . Guerrilla 1 | . . . . . . . . . . . . . . . . . . . . . . . . . 1 . . . . . . . . Mutant 1 | . . . . . . . . . . . . . . . . . . . . 1 . . . . . . . . . . . . . Best Kill Streak 42 | . 5 4 5 . 4 11 8 2 3 . 2 3 4 7 . 1 6 6 3 8 3 3 1 31 42 5 2 10 5 7 . 2 5 Combat Bots Only 38 | . 5 4 5 . 3 9 7 1 3 . 2 3 4 7 . 1 4 6 3 8 3 2 1 30 38 4 1 10 5 7 . 1 5 Max Kills in Single Turn 6 | . 2 2 1 . 2 5 5 1 1 . 1 1 2 2 . 1 4 1 1 1 1 1 1 4 6 1 1 3 1 1 . 1 1 Gunslinging . | . . . . . . . . . . . . . . . . . . . . . . . . . . . . . . . . . . Exploded 6 | . . . 1 . . 3 4 . . . . . 2 . . . 3 . . . . . . 4 6 . . 3 . . . . . Melee . | . . . . . . . . . . . . . . . . . . . . . . . . . . . . . . . . . . Uniques/NPCs Destroyed . | . . . . . . . . . . . . . . . . . . . . . . . . . . . . . . . . . . Combat | -11 -10 -9 -9 -9 -8 -8 -7 -7 -7 -7 -6 -6 -6 -6 -6 -5 -5 -5 -5 -5 -4 -4 -4 -4 -4 -4 -4 -4 -3 -3 -3 -2 -1 -------- Run | Scr Mat Mat Min Exi Min Mat Fac Low Low Dat Pro Fac Low Low Zio Pro Fac Upp Upp War Pro Fac Was Fac Ext Cet Arc Hub Res Arm Lab Res Acc Damage Taken 31230 | . 449 1407 322 . 227 3025 1884 613 877 . 1054 517 1173 938 . 92 453 255 235 584 2338 20 127 5143 2275 560 191 2234 826 1665 . 97 1649 Core 1768 | . 26 143 . . 25 165 266 62 39 . 64 16 75 31 . . 42 . . 100 107 . 5 341 57 . 15 89 12 35 . . 53 Absorbed by Shields 9109 | . . . . . . . 574 . . . . 201 418 336 . 35 158 95 86 211 6 22 132 2206 792 109 117 1067 423 487 . 103 1531 Reduced by Siege Mode 928 | . . . . . . . . . . . . . . . . . . . . . . . . 485 226 22 26 88 10 49 . . 22 Regen/Repaired (Parts) 853 | . . . . . . . . . . . . . . . 853 . . . . . . . . . . . . . . . . . . Core Remaining (%) 78 | 100 89 . . . 58 70 . . . . 38 . . . . 85 . . . . 75 . . . . . . 55 . . 96 100 96 Volleys Fired 2312 | . 72 120 20 . 20 200 100 26 47 . 38 79 75 56 . 8 141 24 54 74 65 33 8 376 129 21 60 171 22 116 . 13 144 Largest 2 | . 2 2 2 . 2 2 2 2 2 . 2 2 2 2 . 2 1 1 1 1 1 1 1 2 1 1 1 1 1 1 . 1 1 Hottest 159 | . 78 88 88 . 88 96 106 106 88 . 88 106 106 88 . 88 53 35 35 110 113 113 113 159 113 113 113 113 113 113 . 120 120 Shots Fired 2946 | . 113 192 32 . 35 348 178 49 90 . 74 113 139 111 . 16 141 24 54 74 65 33 8 380 128 21 62 169 22 117 1 13 144 Gun . | . . . . . . . . . . . . . . . . . . . . . . . . . . . . . . . . . . Cannon 2671 | . 113 192 29 . 35 338 173 49 90 . 74 113 129 111 . 16 141 24 54 74 65 33 8 260 29 19 61 144 22 117 1 13 144 Launcher 275 | . . . 3 . . 10 5 . . . . . 10 . . . . . . . . . . 120 99 2 1 25 . . . . . Special . | . . . . . . . . . . . . . . . . . . . . . . . . . . . . . . . . . . Kinetic 1218 | . 113 192 29 . 35 338 173 41 43 . 37 67 79 55 . 8 1 . . . 7 . . . . . . . . . . . . Thermal 1306 | . . . . . . . . 8 47 . 37 46 50 56 . 8 140 24 54 74 58 33 8 251 29 19 61 131 22 62 . 9 79 Explosive 275 | . . . 3 . . 10 5 . . . . . 10 . . . . . . . . . . 120 99 2 1 25 . . . . . Electromagnetic 147 | . . . . . . . . . . . . . . . . . . . . . . . . 9 . . . 13 . 55 1 4 65 Robot Hit Streak 55 | . 8 13 9 . 6 13 14 8 10 . 9 11 11 10 . 2 10 7 17 23 12 11 10 55 24 37 41 26 11 16 . 9 22 Robot Miss Streak 13 | . 5 4 4 . 4 7 7 5 6 . 13 9 3 2 . 6 6 1 3 1 2 1 . 3 2 . 2 2 2 4 . . 4 Penetration Max 1 | . . . . . . 1 1 . . . . . . . . . . . . . . . . . . . . . . . . . . Secondary Targets . | . . . . . . . . . . . . . . . . . . . . . . . . . . . . . . . . . . Capacitor 1103 | . . . . . . . . . . . . . . . . . 140 24 54 74 58 33 8 190 17 8 61 139 22 117 1 13 144 Shots Hit Robots 1847 | . 40 90 20 . 24 223 101 38 55 . 45 47 91 71 . 5 55 20 47 57 53 10 8 257 115 16 45 148 15 67 . 5 79 Core Hits 1772 | . 21 45 20 . 19 182 65 30 51 . 43 34 44 28 . 1 36 11 20 18 18 6 1 397 480 12 18 105 6 27 . 4 30 Critical Kills 32 | . . . . . . . . . 1 . 2 . . 1 . . . . 3 1 1 . 1 8 2 3 2 6 . . . . 1 Critical Parts Destroyed . | . . . . . . . . . . . . . . . . . . . . . . . . . . . . . . . . . . Critical Strikes 52 | . 1 . . . 1 6 5 . 1 . 2 1 2 2 . . . . 3 1 2 . 1 8 2 3 2 6 . . . 1 2 Meltdown 32 | . . . . . . . . . 1 . 2 . . 1 . . . . 3 1 1 . 1 8 2 3 2 6 . . . . 1 Blast 17 | . 1 . . . 1 6 5 . . . . 1 2 1 . . . . . . . . . . . . . . . . . . . Corrupt 2 | . . . . . . . . . . . . . . . . . . . . . . . . . . . . . . . . 1 1 Impale 1 | . . . . . . . . . . . . . . . . . . . . . 1 . . . . . . . . . . . . Melee Attacks 53 | . . . . . . 7 14 4 . . . . 4 . . . . . . . 17 . . . . . . . . . . 2 5 Impact 31 | . . . . . . 7 14 4 . . . . 4 . . . . . . . 2 . . . . . . . . . . . . Slashing . | . . . . . . . . . . . . . . . . . . . . . . . . . . . . . . . . . . Piercing 22 | . . . . . . . . . . . . . . . . . . . . . 15 . . . . . . . . . . 2 5 Sneak Attacks 1 | . . . . . . . . 1 . . . . . . . . . . . . . . . . . . . . . . . . . Combat Hostiles . | . . . . . . . . . . . . . . . . . . . . . . . . . . . . . . . . . . Follow-up Attacks . | . . . . . . . . . . . . . . . . . . . . . . . . . . . . . . . . . . Damage Inflicted 122065 | . 864 2183 628 . 503 6518 4274 1014 1536 . 1216 1518 3872 2336 . 234 2954 642 1539 2102 1853 745 307 32516 32730 797 1792 10371 584 2860 . 175 3402 Guns . | . . . . . . . . . . . . . . . . . . . . . . . . . . . . . . . . . . Cannons 52393 | . 859 2183 427 . 503 5149 3095 840 1536 . 1216 1280 2649 2336 . 234 1797 642 1539 2102 1621 459 307 6262 977 551 1747 5109 584 2860 . 175 3354 Explosions 68843 | . . . 200 . . 1369 1171 . . . . 238 821 . . . 1157 . . . . 286 . 26254 31753 246 45 5255 . . . . 48 Melee 808 | . . . . . . . . 174 . . . . 402 . . . . . . . 232 . . . . . . . . . . . . Ramming 21 | . 5 . 1 . . . 8 . . . . . . . . . . . . . . . . . . . . 7 . . . . . Kinetic 18282 | . 859 2183 427 . 503 5149 3095 674 802 . 669 994 1566 979 . 180 31 . . . 171 . . . . . . . . . . . . Thermal 29709 | . . . . . . . . 166 734 . 547 333 1083 1357 . 54 1981 642 1539 2102 1450 547 307 6127 977 551 1747 4616 584 1167 . . 1098 Explosive 67575 | . . . 200 . . 1216 1171 . . . . 81 821 . . . 787 . . . . 198 . 25754 31753 246 45 5255 . . . . 48 Electromagnetic 5670 | . . . . . . 153 . . . . . 110 . . . . 155 . . . . . . 635 . . . 493 . 1693 . 175 2256 Impact 576 | . . . . . . . . 174 . . . . 402 . . . . . . . . . . . . . . . . . . . . Slashing . | . . . . . . . . . . . . . . . . . . . . . . . . . . . . . . . . . . Piercing 232 | . . . . . . . . . . . . . . . . . . . . . 232 . . . . . . . . . . . . Highest Corruption 16 | . . . . . . 1 2 2 . . . 3 3 . . 1 . . . 1 1 . 16 16 11 6 6 16 . 5 5 . 2 Average Corruption 4 | . . . . . . 1 1 1 . . . 1 2 . . 1 . . . 1 1 . 10 7 5 6 6 10 . 4 3 . 1 Corruption Purged 46 | . . . . . . . . 4 . . . 3 3 . . . . . . . . . . 21 6 . . . . . 5 . 4 Corruption Blocked . | . . . . . . . . . . . . . . . . . . . . . . . . . . . . . . . . . . Effects 231 | . . . . . . 5 9 2 . . . . . . . 3 . . . . 7 . 7 60 26 6 29 60 . 6 3 . 8 Message Errors 53 | . . . . . . 1 3 2 . . . . . . . . . . . . 1 . 2 8 5 2 7 18 . 3 . . 1 Matter Fused 47 | . . . . . . 1 1 . . . . . . . . 2 . . . . 3 . 2 9 7 . 7 11 . . 1 . 3 Heat Flow Errors 20 | . . . . . . . . . . . . . . . . 1 . . . . 1 . 2 5 2 2 3 3 . 1 . . . Energy Discharges 32 | . . . . . . 2 3 . . . . . . . . . . . . . . . . 12 3 2 4 4 . . 1 . 1 Parts Rejected 3 | . . . . . . . . . . . . . . . . . . . . . . . . . 1 . . 2 . . . . . Data Loss (minor) 31 | . . . . . . . 1 . . . . . . . . . . . . . 2 . 1 11 4 . 3 8 . . . . 1 Data Loss (major) 14 | . . . . . . . 1 . . . . . . . . . . . . . . . . 7 2 . 1 2 . . . . 1 Misfires 11 | . . . . . . 1 . . . . . . . . . . . . . . . . . 4 . . 2 2 . 1 1 . . Alerts 10 | . . . . . . . . . . . . . . . . . . . . . . . . . 1 . 2 5 . 1 . . 1 Misdirections 1 | . . . . . . . . . . . . . . . . . . . . . . . . . . . . 1 . . . . . Weapon Failures 9 | . . . . . . . . . . . . . . . . . . . . . . . . 4 1 . . 4 . . . . . Overload Shots . | . . . . . . . . . . . . . . . . . . . . . . . . . . . . . . . . . . Overflow Damage 3341 | . 1 . . . . 62 142 118 . . 34 7 260 69 . 43 56 . 69 20 47 144 . 733 714 . 87 533 10 46 . . 146 Projectiles 1240 | . 1 . . . . 62 42 27 . . 34 . 41 69 . 43 31 . 69 20 47 22 . 242 11 . 87 190 10 46 . . 146 Explosions 1842 | . . . . . . . 100 . . . . 7 51 . . . 25 . . . . 122 . 491 703 . . 343 . . . . . Melee 259 | . . . . . . . . 91 . . . . 168 . . . . . . . . . . . . . . . . . . . . Knockbacks 245 | . 14 27 7 . 5 99 22 8 13 . 14 13 12 8 . 3 . . . . . . . . . . . . . . . . . Impact 1 | . . . . . . . . . . . . . 1 . . . . . . . . . . . . . . . . . . . . Kinetic 215 | . 12 22 7 . 4 85 16 8 13 . 14 13 10 8 . 3 . . . . . . . . . . . . . . . . . Secondary 29 | . 2 5 . . 1 14 6 . . . . . 1 . . . . . . . . . . . . . . . . . . . . Self-Inflicted Damage 1483 | . . . . . . . 144 . . . . 28 28 . . . 299 . . . 114 . . 255 6 . . 609 . . . . . Shots 35 | . . . . . . . 2 . . . . 1 1 . . . 6 . . . 1 . . 11 1 . . 12 . . . . . Rammed 7 | . 1 . 1 . . . 4 . . . . . . . . . . . . . . . . . . . . 1 . . . . . Targets Rammed 7 | . 1 . 1 . . . 4 . . . . . . . . . . . . . . . . . . . . 1 . . . . . Kicked . | . . . . . . . . . . . . . . . . . . . . . . . . . . . . . . . . . . Crushed . | . . . . . . . . . . . . . . . . . . . . . . . . . . . . . . . . . . Highest Temperature 444 | . 144 444 . . 6 396 10 . 8 . . 8 12 22 . 66 10 . 4 382 252 132 192 210 159 177 336 318 268 260 4 120 264 Average Temperature 70 | . 33 54 . . 2 86 5 . 8 . . 5 6 9 . 45 10 . 2 179 93 58 113 44 54 49 63 71 114 57 4 44 80 Received Heat Transfer 5962 | . 120 366 39 . 63 1674 594 63 291 . 93 82 416 355 . . 60 12 33 18 168 . . 663 178 . 13 337 192 76 . 16 40 Effects 15 | . . 2 . . . 4 . . . . . . . . . . . . . 1 1 . . . . . . 1 . 5 . . 1 Shutdowns 3 | . . 1 . . . 2 . . . . . . . . . . . . . . . . . . . . . . . . . . . Interference 8 | . . . . . . . . . . . . . . . . . . . . . 1 . . . . . . 1 . 5 . . 1 Matter Decay 1 | . . . . . . . . . . . . . . . . . . . . 1 . . . . . . . . . . . . . Short Circuit 3 | . . 1 . . . 2 . . . . . . . . . . . . . . . . . . . . . . . . . . . Siege Activations 52 | . . . . . . . . . . . . . . . . . . . . . . . . 10 7 1 4 15 1 8 . 1 5 Total Turns 827 | . . . . . . . . . . . . . . . . . . . . . . . . 221 93 21 42 174 3 104 . 75 94 Longest Duration 75 | . . . . . . . . . . . . . . . . . . . . . . . . 52 23 21 20 38 3 31 . 75 45 Robots Corrupted 24 | . . . . . . . . . . . . . . . . . . . . . . . . 2 . . . 1 . 11 . . 10 Combat Hostiles 22 | . . . . . . . . . . . . . . . . . . . . . . . . 2 . . . 1 . 10 . . 9 Parts Fried . | . . . . . . . . . . . . . . . . . . . . . . . . . . . . . . . . . . Impact Corruptions 11 | . . . . . . . 1 3 . . . . 7 . . . . . . . . . . . . . . . . . . . . Robots Melted 37 | . . . . . . . . . 1 . 2 . . 1 . . 2 . 3 4 1 . 1 8 2 3 2 6 . . . . 1 Combat Hostiles 35 | . . . . . . . . . 1 . 2 . . 1 . . 2 . 3 4 1 . 1 7 2 3 1 6 . . . . 1 Parts Melted 4 | . . . . . . . . . . . . . . . . . 1 . . 2 . . . . . . . 1 . . . . . Heat Transferred 30530 | . . . . . . . . 250 1150 . 850 500 1700 2100 . 100 2950 1000 2300 1825 314 420 296 5526 889 518 1628 3883 555 999 . . 777 Parts Sabotaged . | . . . . . . . . . . . . . . . . . . . . . . . . . . . . . . . . . . Parts Stolen . | . . . . . . . . . . . . . . . . . . . . . . . . . . . . . . . . . . Parts Stripped . | . . . . . . . . . . . . . . . . . . . . . . . . . . . . . . . . . . Power Chain Reactions . | . . . . . . . . . . . . . . . . . . . . . . . . . . . . . . . . . . Missiles Intercepted . | . . . . . . . . . . . . . . . . . . . . . . . . . . . . . . . . . . Alert | -11 -10 -9 -9 -9 -8 -8 -7 -7 -7 -7 -6 -6 -6 -6 -6 -5 -5 -5 -5 -5 -4 -4 -4 -4 -4 -4 -4 -4 -3 -3 -3 -2 -1 ------- Run | Scr Mat Mat Min Exi Min Mat Fac Low Low Dat Pro Fac Low Low Zio Pro Fac Upp Upp War Pro Fac Was Fac Ext Cet Arc Hub Res Arm Lab Res Acc Peak Influence 6663 | . 503 1264 694 . 165 2001 1800 . . . . 816 . . . . 2449 . . . . 821 534 6663 6473 3823 1789 1409 888 1060 . 189 981 Initial 3624 | . . 178 468 . . 11 910 . . . . . . . . . 74 . . . . 16 287 373 3264 3624 1529 467 739 445 . . . Average 1313 | . 333 756 487 . 90 924 1283 . . . . 392 . . . . 1243 . . . . 457 421 3841 4483 3742 1557 731 759 762 . 42 365 Maximum Alert Level 5 | . 2 4 2 . . 5 5 . . . . 3 . . . . 5 . . . . 3 2 5 5 5 5 4 3 3 . . 3 Low Security (%) 11 | 100 11 1 . . 100 12 . . . . . 30 . . . . 6 . . . . 16 . . . . . . . . . 100 35 Level 1 12 | . 54 18 28 . . 11 . . . . . 19 . . . . 6 . . . . 12 38 1 . . . 10 . . . . 29 Level 2 20 | . 33 31 71 . . 21 . . . . . 36 . . . . 12 . . . . 69 61 3 . . . 42 . 28 . . 18 Level 3 16 | . . 23 . . . 18 20 . . . . 13 . . . . 14 . . . . 1 . 3 . . . 33 100 71 . . 16 Level 4 18 | . . 24 . . . 15 69 . . . . . . . . . 25 . . . . . . 12 . . 71 13 . . . . . Level 5 10 | . . . . . . 20 9 . . . . . . . . . 34 . . . . . . 16 19 100 28 . . . . . . High Security 10 | . . . . . . . . . . . . . . . . . . . . . . . . 62 80 . . . . . . . . Max Security . | . . . . . . . . . . . . . . . . . . . . . . . . . . . . . . . . . . Sterilizations 3 | . . . . . . 1 . . . . . . . . . . . . . . . . . 1 1 . . . . . . . . Squads Dispatched 127 | . 3 5 . . . 11 13 . . . . 3 . 1 . . 7 . . . . 1 . 34 23 . . 14 1 5 . . 6 Investigation 22 | . 2 3 . . . 6 4 . . . . . . . . . . . . . . . . 3 1 . . 2 . . . . 1 Extermination 12 | . . . . . . . 1 . . . . 1 . . . . . . . . . . . 1 . . . 2 . 3 . . 4 Reinforcement 20 | . 1 1 . . . 1 3 . . . . 2 . . . . 2 . . . . 1 . 1 . . . 5 1 1 . . 1 Assault 69 | . . 1 . . . 4 3 . . . . . . 1 . . 4 . . . . . . 28 22 . . 5 . 1 . . . Garrison 4 | . . . . . . . 2 . . . . . . . . . 1 . . . . . . 1 . . . . . . . . . Intercept . | . . . . . . . . . . . . . . . . . . . . . . . . . . . . . . . . . . Searches Triggered . | . . . . . . . . . . . . . . . . . . . . . . . . . . . . . . . . . . Data Miner Redirects 15 | . . . . . . . . . . . . . . . . . 2 . . . . . . 7 . . . 5 . 1 . . . Construction Impeded 4 | . . 1 . . . . 1 . . . . . . . . . 1 . . . . . . 1 . . . . . . . . . Haulers Reinforced 4 | . . . . . . . . . . . . 1 . . . . 1 . . . . 1 . . . . . 1 . . . . . Active Scanning Responses . | . . . . . . . . . . . . . . . . . . . . . . . . . . . . . . . . . . Cargo Convoy Interrupts 1 | . . . . . . . 1 . . . . . . . . . . . . . . . . . . . . . . . . . . Stealth | -11 -10 -9 -9 -9 -8 -8 -7 -7 -7 -7 -6 -6 -6 -6 -6 -5 -5 -5 -5 -5 -4 -4 -4 -4 -4 -4 -4 -4 -3 -3 -3 -2 -1 --------- Run | Scr Mat Mat Min Exi Min Mat Fac Low Low Dat Pro Fac Low Low Zio Pro Fac Upp Upp War Pro Fac Was Fac Ext Cet Arc Hub Res Arm Lab Res Acc Distress Signals 36 | . . 2 . . . 3 5 . . . . 1 . . . . . . . . 14 1 . 1 3 1 . 2 . . . 3 . Communications Jammed 64 | . . . . . . . . . . . . 1 . . . . . . . . . . . . . . . 51 . 9 . 2 1 Distress Signals 53 | . . . . . . . . . . . . . . . . . . . . . . . . . . . . 49 . 1 . 2 1 Times Spotted 839 | . 24 42 14 . 5 73 43 8 14 . 11 12 24 24 . 10 17 8 12 45 12 5 4 178 94 4 9 70 7 30 . 5 35 Peak Tracking Total 35 | . 5 5 3 . 3 9 9 1 4 . 3 3 4 10 . 5 3 3 3 13 4 3 2 16 35 5 1 9 4 5 . 1 6 Tactical Retreats 21 | . 1 2 1 . . 4 1 . . . . . 2 . . . 1 1 . 1 . . . 2 . . . 1 1 2 . . 1 Traps | -11 -10 -9 -9 -9 -8 -8 -7 -7 -7 -7 -6 -6 -6 -6 -6 -5 -5 -5 -5 -5 -4 -4 -4 -4 -4 -4 -4 -4 -3 -3 -3 -2 -1 ------- Run | Scr Mat Mat Min Exi Min Mat Fac Low Low Dat Pro Fac Low Low Zio Pro Fac Upp Upp War Pro Fac Was Fac Ext Cet Arc Hub Res Arm Lab Res Acc Traps Triggered 25 | . 1 2 . . . 3 2 . . . . 1 . . . . . . . 1 1 1 . 4 2 . . 2 . 4 . . 1 Indirectly . | . . . . . . . . . . . . . . . . . . . . . . . . . . . . . . . . . . Trap Hack Attempts . | . . . . . . . . . . . . . . . . . . . . . . . . . . . . . . . . . . Triggered . | . . . . . . . . . . . . . . . . . . . . . . . . . . . . . . . . . . Disarmed . | . . . . . . . . . . . . . . . . . . . . . . . . . . . . . . . . . . Reprogrammed . | . . . . . . . . . . . . . . . . . . . . . . . . . . . . . . . . . . Reused 4 | . . . . . . . . . . . . . . . . . . . . 4 . . . . . . . . . . . . . Traps Extracted . | . . . . . . . . . . . . . . . . . . . . . . . . . . . . . . . . . . Installed 4 | . . . . . . . . . . . . . . . . . . . . 4 . . . . . . . . . . . . . Triggered 24 | . . . . . . . 5 3 . . . . 2 . . 1 . . . 13 . . . . . . . . . . . . . Most Traps Carried 6 | . . . . . . . . . . . . . . 6 6 5 4 4 4 4 . . . . . . . . . . . . . Machines | -11 -10 -9 -9 -9 -8 -8 -7 -7 -7 -7 -6 -6 -6 -6 -6 -5 -5 -5 -5 -5 -4 -4 -4 -4 -4 -4 -4 -4 -3 -3 -3 -2 -1 ---------- Run | Scr Mat Mat Min Exi Min Mat Fac Low Low Dat Pro Fac Low Low Zio Pro Fac Upp Upp War Pro Fac Was Fac Ext Cet Arc Hub Res Arm Lab Res Acc Machines Disabled 411 | . 24 35 4 . 5 46 17 1 3 . . 44 2 . . . 67 . . . 4 17 . 83 5 5 7 11 . 10 . 5 16 Max in Single Turn 7 | . 1 1 1 . 2 2 4 1 1 . . 3 1 . . . 5 . . . 2 5 . 7 1 1 2 3 . 2 . 1 2 Garrison Access 10 | . . . . . . 1 2 . . . . 1 . . . . 2 . . . . . . 2 . . . 1 1 . . . . Network Hub 1 | . . . . . . . . . . . . . . . . . . . . . . . . . . . . 1 . . . . . Energy Cycler 1 | . . . . . . . . . . . . . . . . . . . . . . . . . 1 . . . . . . . . Machines Sabotaged . | . . . . . . . . . . . . . . . . . . . . . . . . . . . . . . . . . . Garrisons Compromised 1 | . . . . . . . 1 . . . . . . . . . . . . . . . . . . . . . . . . . . Overloaded Fab Kills . | . . . . . . . . . . . . . . . . . . . . . . . . . . . . . . . . . . Hacking | -11 -10 -9 -9 -9 -8 -8 -7 -7 -7 -7 -6 -6 -6 -6 -6 -5 -5 -5 -5 -5 -4 -4 -4 -4 -4 -4 -4 -4 -3 -3 -3 -2 -1 --------- Run | Scr Mat Mat Min Exi Min Mat Fac Low Low Dat Pro Fac Low Low Zio Pro Fac Upp Upp War Pro Fac Was Fac Ext Cet Arc Hub Res Arm Lab Res Acc Machines Accessed 88 | . 6 11 . 2 . 10 11 . 2 3 . 3 2 . . 1 6 1 1 5 . . . 4 1 1 . 7 1 4 . . 6 Terminals 64 | . 6 11 . . . 7 9 . 1 . . 2 1 . . 1 4 . . . . . . 4 1 1 . 6 . 4 . . 6 Fabricators . | . . . . . . . . . . . . . . . . . . . . . . . . . . . . . . . . . . Repair Stations . | . . . . . . . . . . . . . . . . . . . . . . . . . . . . . . . . . . Recycling Units . | . . . . . . . . . . . . . . . . . . . . . . . . . . . . . . . . . . Scanalyzers 2 | . . . . . . 2 . . . . . . . . . . . . . . . . . . . . . . . . . . . Garrison Access 8 | . . . . . . 1 2 . . . . 1 . . . . 2 . . . . . . . . . . 1 1 . . . . Total Hacks 243 | . 24 43 . 2 . 31 16 . 8 23 . 8 8 . . 1 18 1 1 10 . . . 9 1 1 . 12 1 12 . . 13 Successful 131 | . 13 18 . 2 . 17 6 . 8 23 . 1 8 . . 1 6 1 1 10 . . . 1 . 1 . 4 1 5 . . 4 Failed 110 | . 10 24 . . . 14 10 . . . . 7 . . . . 12 . . . . . . 8 1 . . 8 . 7 . . 9 Catastrophic 21 | . 1 1 . . . 1 5 . . . . . . . . . 2 . . . . . . 1 1 . . 3 . 3 . . 3 Database Lockouts 2 | . 1 1 . . . . . . . . . . . . . . . . . . . . . . . . . . . . . . . Manual 101 | . 19 28 . 1 . 24 9 1 . . . . . . 1 . 8 . . 1 . . . 5 . . . . . 2 . . 2 Terminals 187 | . 24 43 . . . 27 12 . 7 . . 5 7 . . 1 14 . . . . . . 9 1 1 . 11 . 12 . . 13 Fabricators . | . . . . . . . . . . . . . . . . . . . . . . . . . . . . . . . . . . Repair Stations . | . . . . . . . . . . . . . . . . . . . . . . . . . . . . . . . . . . Recycling Units . | . . . . . . . . . . . . . . . . . . . . . . . . . . . . . . . . . . Scanalyzers 3 | . . . . . . 3 . . . . . . . . . . . . . . . . . . . . . . . . . . . Garrison Access 14 | . . . . . . 1 4 . . . . 3 . . . . 4 . . . . . . . . . . 1 1 . . . . Terminal Hacks 98 | . 5 14 . 2 . 6 4 . 8 23 . . 8 . . 1 4 1 1 10 . . . . . 1 . 3 . 4 . . 3 Record 22 | . . . . 1 . . . . 7 2 . . 7 . . 1 . . . 4 . . . . . . . . . . . . . Part Schematic 12 | . . . . . . . . . . 12 . . . . . . . . . . . . . . . . . . . . . . . Robot Schematic 6 | . . . . . . . . . . 6 . . . . . . . . . . . . . . . . . . . . . . . Robot Analysis 11 | . 1 6 . . . 3 1 . . . . . . . . . . . . . . . . . . . . . . . . . . Prototype ID Bank 8 | . . . . . . . . . . 3 . . . . . . . . . 5 . . . . . . . . . . . . . Open Door 6 | . . . . . . . . . 1 . . . 1 . . . . 1 1 1 . . . . . 1 . . . . . . . Branch Access Points 4 | . . 1 . . . 1 1 . . . . . . . . . 1 . . . . . . . . . . . . . . . . Emergency Access Points 1 | . . 1 . . . . . . . . . . . . . . . . . . . . . . . . . . . . . . . Machine Index 1 | . . . . . . . . . . . . . . . . . . . . . . . . . . . . . . . . . 1 Terminal Index 1 | . . 1 . . . . . . . . . . . . . . . . . . . . . . . . . . . . . . . Alert Level 2 | . . . . . . . 1 . . . . . . . . . . . . . . . . . . . . 1 . . . . . Unreport Threat 2 | . . . . . . . . . . . . . . . . . . . . . . . . . . . . 2 . . . . . Locate Traps 15 | . 3 5 . . . 1 1 . . . . . . . . . 1 . . . . . . . . . . . . 2 . . 2 Patrol Status 1 | . . . . . . . . . . . . . . . . . . . . . . . . . . . . . . 1 . . . Zone Layout 5 | . 1 . . . . 1 . . . . . . . . . . 2 . . . . . . . . . . . . 1 . . . EX-Prototype ID Bank 1 | . . . . 1 . . . . . . . . . . . . . . . . . . . . . . . . . . . . . Fabricator Hacks . | . . . . . . . . . . . . . . . . . . . . . . . . . . . . . . . . . . Repair Station Hacks . | . . . . . . . . . . . . . . . . . . . . . . . . . . . . . . . . . . Recycling Unit Hacks . | . . . . . . . . . . . . . . . . . . . . . . . . . . . . . . . . . . Scanalyzer 2 | . . . . . . 2 . . . . . . . . . . . . . . . . . . . . . . . . . . . Insert Component 1 | . . . . . . 1 . . . . . . . . . . . . . . . . . . . . . . . . . . . Analyze 1 | . . . . . . 1 . . . . . . . . . . . . . . . . . . . . . . . . . . . Garrison Access Hacks 3 | . . . . . . . . . . . . 1 . . . . . . . . . . . . . . . 1 1 . . . . Seal Access 3 | . . . . . . . . . . . . 1 . . . . . . . . . . . . . . . 1 1 . . . . Unauthorized Hacks 28 | . 8 4 . . . 9 2 . . . . . . . . . 2 . . . . . . 1 . . . . . 1 . . 1 Terminals 26 | . 8 4 . . . 7 2 . . . . . . . . . 2 . . . . . . 1 . . . . . 1 . . 1 Assimilate 2 | . . . . . . . . . . . . . . . . . 1 . . . . . . . . . . . . 1 . . . Botnet 9 | . 2 2 . . . 2 1 . . . . . . . . . . . . . . . . 1 . . . . . . . . 1 Detonate 6 | . 3 . . . . 2 . . . . . . . . . . 1 . . . . . . . . . . . . . . . . Disrupt 3 | . 1 1 . . . 1 . . . . . . . . . . . . . . . . . . . . . . . . . . . Operators 5 | . 1 1 . . . 2 1 . . . . . . . . . . . . . . . . . . . . . . . . . . Sabotage 1 | . 1 . . . . . . . . . . . . . . . . . . . . . . . . . . . . . . . . Fabricators . | . . . . . . . . . . . . . . . . . . . . . . . . . . . . . . . . . . Repair Stations . | . . . . . . . . . . . . . . . . . . . . . . . . . . . . . . . . . . Recycling Units . | . . . . . . . . . . . . . . . . . . . . . . . . . . . . . . . . . . Scanalyzers 1 | . . . . . . 1 . . . . . . . . . . . . . . . . . . . . . . . . . . . Extract 1 | . . . . . . 1 . . . . . . . . . . . . . . . . . . . . . . . . . . . Garrison Access 1 | . . . . . . 1 . . . . . . . . . . . . . . . . . . . . . . . . . . . Jam 1 | . . . . . . 1 . . . . . . . . . . . . . . . . . . . . . . . . . . . Data Cores Recovered 4 | . 2 . . . . . 1 . . . . . . . . . 1 . . . . . . . . . . . . . . . . Used 3 | . 1 . . . . . 1 . . . . . . . . . 1 . . . . . . . . . . . . . . . . Hacking Detections 62 | . 4 11 . . . 7 9 . . . . 3 . . . 1 6 . . . . . . 4 1 . . 6 . 4 . . 6 Full Trace Events 13 | . 1 2 . . . 3 2 . . . . . . . . . . . . . . . . 2 . . . 2 . . . . 1 Feedback Events . | . . . . . . . . . . . . . . . . . . . . . . . . . . . . . . . . . . Feedback Blocked . | . . . . . . . . . . . . . . . . . . . . . . . . . . . . . . . . . . Robot Schematics Acquired 6 | . . . . . . . . . . 6 . . . . . . . . . . . . . . . . . . . . . . . Robots Built . | . . . . . . . . . . . . . . . . . . . . . . . . . . . . . . . . . . Authchips . | . . . . . . . . . . . . . . . . . . . . . . . . . . . . . . . . . . Time . | . . . . . . . . . . . . . . . . . . . . . . . . . . . . . . . . . . Total Robot Build Rating . | . . . . . . . . . . . . . . . . . . . . . . . . . . . . . . . . . . Part Schematics Acquired 15 | . . . . . . 3 . . . 12 . . . . . . . . . . . . . . . . . . . . . . . Parts Built . | . . . . . . . . . . . . . . . . . . . . . . . . . . . . . . . . . . Authchips . | . . . . . . . . . . . . . . . . . . . . . . . . . . . . . . . . . . Time . | . . . . . . . . . . . . . . . . . . . . . . . . . . . . . . . . . . Total Part Build Rating . | . . . . . . . . . . . . . . . . . . . . . . . . . . . . . . . . . . Parts Repaired . | . . . . . . . . . . . . . . . . . . . . . . . . . . . . . . . . . . Time . | . . . . . . . . . . . . . . . . . . . . . . . . . . . . . . . . . . Parts Recycled . | . . . . . . . . . . . . . . . . . . . . . . . . . . . . . . . . . . Recycled Matter . | . . . . . . . . . . . . . . . . . . . . . . . . . . . . . . . . . . Retrieved Matter . | . . . . . . . . . . . . . . . . . . . . . . . . . . . . . . . . . . Retrieved Components . | . . . . . . . . . . . . . . . . . . . . . . . . . . . . . . . . . . Parts Scanalyzed 1 | . . . . . . 1 . . . . . . . . . . . . . . . . . . . . . . . . . . . Part Schematics Acquired 1 | . . . . . . 1 . . . . . . . . . . . . . . . . . . . . . . . . . . . Parts Damaged . | . . . . . . . . . . . . . . . . . . . . . . . . . . . . . . . . . . Bothacking | -11 -10 -9 -9 -9 -8 -8 -7 -7 -7 -7 -6 -6 -6 -6 -6 -5 -5 -5 -5 -5 -4 -4 -4 -4 -4 -4 -4 -4 -3 -3 -3 -2 -1 ------------ Run | Scr Mat Mat Min Exi Min Mat Fac Low Low Dat Pro Fac Low Low Zio Pro Fac Upp Upp War Pro Fac Was Fac Ext Cet Arc Hub Res Arm Lab Res Acc Used RIF Installer . | . . . . . . . . . . . . . . . . . . . . . . . . . . . . . . . . . . Robots Hacked . | . . . . . . . . . . . . . . . . . . . . . . . . . . . . . . . . . . Non-combat . | . . . . . . . . . . . . . . . . . . . . . . . . . . . . . . . . . . Combat . | . . . . . . . . . . . . . . . . . . . . . . . . . . . . . . . . . . Robot Hacks Applied . | . . . . . . . . . . . . . . . . . . . . . . . . . . . . . . . . . . Relay Couplers Released 19 | . . . . . . . 4 . . . . . . . . . 3 . . . . . . 8 . . . . . . . . 4 Machine Destruction 11 | . . . . . . . 4 . . . . . . . . . 3 . . . . . . 4 . . . . . . . . . Programmers 8 | . . . . . . . . . . . . . . . . . . . . . . . . 4 . . . . . . . . 4 Fabnet Peak Effective % . | . . . . . . . . . . . . . . . . . . . . . . . . . . . . . . . . . . Robots Rewired 13 | . . . . . . . . . . . . . . 2 . . . . . . 2 . . . 7 . . . . 2 . . . Allies Hacked . | . . . . . . . . . . . . . . . . . . . . . . . . . . . . . . . . . . Hacks Repelled . | . . . . . . . . . . . . . . . . . . . . . . . . . . . . . . . . . . Allies | -11 -10 -9 -9 -9 -8 -8 -7 -7 -7 -7 -6 -6 -6 -6 -6 -5 -5 -5 -5 -5 -4 -4 -4 -4 -4 -4 -4 -4 -3 -3 -3 -2 -1 -------- Run | Scr Mat Mat Min Exi Min Mat Fac Low Low Dat Pro Fac Low Low Zio Pro Fac Upp Upp War Pro Fac Was Fac Ext Cet Arc Hub Res Arm Lab Res Acc Total Allies 23 | . . . 6 . . . . . . . 1 . . 2 2 . . . . . 2 . . . 8 . . . . 2 . . . Largest Group 6 | . . . 4 3 1 . . . . . 1 . . 2 3 3 2 . . . 2 2 2 1 6 . . . . 2 . . . Highest-Rated Group 247 | . . . 71 65 16 . . . . . 96 . . 59 221 221 185 . . . 98 98 98 49 247 . . . . 112 . . . Highest-Rated Ally 96 | . . . 31 31 16 . . . . . 96 . . 30 96 96 96 . . . 49 49 49 49 51 . . . . 65 . . . Total Orders . | . . . . . . . . . . . . . . . . . . . . . . . . . . . . . . . . . . Ally Attacks 165 | . . . 23 . 2 . . . . . 16 . . 19 . 22 16 . . . 3 4 28 . 25 . . . . 7 . . . Total Damage 7523 | . . . 249 . 16 . . . . . 807 . . 345 . 609 725 . . . 61 251 3611 . 752 . . . . 97 . . . Kills 27 | . . . 4 . . . . . . . 3 . . 2 . 9 3 . . . . . 5 . 1 . . . . . . . . Allies Corrupted . | . . . . . . . . . . . . . . . . . . . . . . . . . . . . . . . . . . Allies Melted 2 | . . . . . . . . 1 . . . . . . . . . . . . . . . . 1 . . . . . . . . Intel | -11 -10 -9 -9 -9 -8 -8 -7 -7 -7 -7 -6 -6 -6 -6 -6 -5 -5 -5 -5 -5 -4 -4 -4 -4 -4 -4 -4 -4 -3 -3 -3 -2 -1 ------- Run | Scr Mat Mat Min Exi Min Mat Fac Low Low Dat Pro Fac Low Low Zio Pro Fac Upp Upp War Pro Fac Was Fac Ext Cet Arc Hub Res Arm Lab Res Acc Robot Analysis Total 11 | . 1 6 . . . 3 1 . . . . . . . . . . . . . . . . . . . . . . . . . . Derelict Logs Recovered . | . . . . . . . . . . . . . . . . . . . . . . . . . . . . . . . . . . Drone Launches . | . . . . . . . . . . . . . . . . . . . . . . . . . . . . . . . . . . Drone Recoveries . | . . . . . . . . . . . . . . . . . . . . . . . . . . . . . . . . . . Exploration | -11 -10 -9 -9 -9 -8 -8 -7 -7 -7 -7 -6 -6 -6 -6 -6 -5 -5 -5 -5 -5 -4 -4 -4 -4 -4 -4 -4 -4 -3 -3 -3 -2 -1 ------------- Run | Scr Mat Mat Min Exi Min Mat Fac Low Low Dat Pro Fac Low Low Zio Pro Fac Upp Upp War Pro Fac Was Fac Ext Cet Arc Hub Res Arm Lab Res Acc Turns Passed 36638 | 9 1426 2061 989 341 665 3582 2200 1442 1997 86 1197 772 1672 1480 1096 761 685 863 904 1162 955 222 156 2564 971 171 1374 1532 303 978 77 431 1514 Spaces Moved 20925 | 18 747 1055 565 236 408 1552 1238 1104 1268 75 908 401 1064 1011 939 633 453 728 704 829 685 154 129 1187 417 82 138 664 156 422 17 181 757 Core 17 | 17 . . . . . . . . . . . . . . . . . . . . . . . . . . . . . . . . . Treads 8254 | 1 747 1055 565 236 408 1552 205 . . . . . . . . . . . . . . . . 651 417 82 138 664 156 422 17 181 757 Legs . | . . . . . . . . . . . . . . . . . . . . . . . . . . . . . . . . . . Wheels 12654 | . . . . . . . 1033 1104 1268 75 908 401 1064 1011 939 633 453 728 704 829 685 154 129 536 . . . . . . . . . Hover . | . . . . . . . . . . . . . . . . . . . . . . . . . . . . . . . . . . Flight . | . . . . . . . . . . . . . . . . . . . . . . . . . . . . . . . . . . Fastest Speed 50 | 50 160 145 145 145 145 150 115 115 115 115 115 130 130 115 115 115 115 115 115 115 100 115 115 115 160 160 160 152 152 152 152 145 145 Average Speed 133 | 56 160 149 145 145 145 156 128 115 115 115 115 130 130 127 115 115 115 115 115 115 114 115 115 150 173 160 160 158 152 152 152 150 147 Slowest Speed 225 | 160 160 160 145 145 145 160 160 115 115 115 115 130 130 130 115 115 115 115 115 115 115 115 115 180 180 160 160 160 152 152 152 152 225 Overloaded Moves . | . . . . . . . . . . . . . . . . . . . . . . . . . . . . . . . . . . Propulsion Burnouts . | . . . . . . . . . . . . . . . . . . . . . . . . . . . . . . . . . . Robots Hopped . | . . . . . . . . . . . . . . . . . . . . . . . . . . . . . . . . . . Cave-ins Triggered . | . . . . . . . . . . . . . . . . . . . . . . . . . . . . . . . . . . Exploration Rate (%) 63 | 3 96 99 98 61 98 97 45 93 98 68 87 18 99 97 85 90 20 79 77 89 77 7 77 40 68 63 78 58 8 42 6 9 25 Regions Visited 33 Branch Regions 21 Pre-discovered Areas 4 | . . . . 1 . . . . . 1 . . . . 1 . . . . 1 . . . . . . . . . . . . . Known Exits Taken 22 | . . 1 . . . . 1 1 1 1 1 1 1 1 1 1 1 1 1 1 1 . . 1 1 1 1 1 . . . 1 . Unknown Exits Taken 9 | 1 1 . 1 1 1 1 . . . . . . . . . . . . . . . . . . . . . . 1 1 1 . . Scrap Searched . | . . . . . . . . . . . . . . . . . . . . . . . . . . . . . . . . . . Spaces Dug 177 | . . . . . . 3 17 . 1 . 1 . 15 . . . 7 . . 3 2 1 . 59 . . 12 6 2 20 . 4 24 Terrain Destroyed 3696 | . 6 16 19 . 16 144 124 6 18 . 20 165 95 29 . 7 443 4 8 5 6 200 . 1307 583 44 16 292 7 43 . 4 69 Melee 12 | . . . . . . . 10 . . . . . . . . . . . . . 2 . . . . . . . . . . . . Projectile 453 | . 6 16 2 . 2 76 40 6 18 . 20 14 30 29 . 7 33 4 8 5 2 5 . 46 1 . 4 12 7 24 . 4 32 AOE 3231 | . . . 17 . 14 68 74 . . . . 151 65 . . . 410 . . . 2 195 . 1261 582 44 12 280 . 19 . . 37 Terrain Rammed . | . . . . . . . . . . . . . . . . . . . . . . . . . . . . . . . . . . Walls Destroyed . | . . . . . . . . . . . . . . . . . . . . . . . . . . . . . . . . . . Machines Disabled . | . . . . . . . . . . . . . . . . . . . . . . . . . . . . . . . . . . Actions | -11 -10 -9 -9 -9 -8 -8 -7 -7 -7 -7 -6 -6 -6 -6 -6 -5 -5 -5 -5 -5 -4 -4 -4 -4 -4 -4 -4 -4 -3 -3 -3 -2 -1 --------- Run | Scr Mat Mat Min Exi Min Mat Fac Low Low Dat Pro Fac Low Low Zio Pro Fac Upp Upp War Pro Fac Was Fac Ext Cet Arc Hub Res Arm Lab Res Acc Total 27974 | 17 864 1349 702 235 447 2337 1637 1217 1716 74 987 537 1204 1094 954 650 617 754 798 1040 810 200 136 1875 646 111 1291 1136 222 759 71 338 1149 Wait 4366 | . 45 171 112 . 17 559 262 68 402 . 41 52 50 13 8 10 18 1 41 128 19 12 . 294 44 6 1092 282 40 165 47 139 228 Move 20893 | 17 746 1054 564 235 407 1551 1237 1103 1267 74 907 400 1063 1010 938 632 452 727 703 828 684 154 128 1186 416 81 137 664 155 421 16 180 756 Hop . | . . . . . . . . . . . . . . . . . . . . . . . . . . . . . . . . . . Pick Up 21 | . . . 2 . . . . . . . . . . 6 2 . . 1 . . 1 . . 2 2 1 . 4 . . . . . Fast Attach 12 | . . . . . . . 2 . . . . . . . . . . . . . 1 . . . 3 . . 2 . . . 1 3 Attach 45 | . . 1 . . 1 5 . 3 . . . 3 3 . . . . . . . 5 . . 5 3 1 1 5 1 3 . 1 4 Detach 34 | . . 2 1 . 1 1 2 2 . . . . 1 . . . 1 . . 1 2 1 . 6 2 . 1 2 1 1 2 1 3 Swap 73 | . . . 2 . . 12 16 11 . . . 3 8 . 4 . . . . . 5 . . 4 . . . 2 2 . 1 . 3 Drop 35 | . . 1 . . 1 2 . . . . 1 . . . 2 . 2 1 . 4 . . . 2 4 1 . 4 1 . 5 1 3 Fire 2312 | . 72 120 20 . 20 200 100 26 47 . 38 79 75 56 . 8 141 24 54 74 65 33 8 376 129 21 60 171 22 116 . 13 144 Melee 53 | . . . . . . 7 14 4 . . . . 4 . . . . . . . 17 . . . . . . . . . . 2 5 Ram . | . . . . . . . . . . . . . . . . . . . . . . . . . . . . . . . . . . Kick . | . . . . . . . . . . . . . . . . . . . . . . . . . . . . . . . . . . Crush 6 | . 1 . 1 . . . 4 . . . . . . . . . . . . . . . . . . . . . . . . . . Escape Stasis 8 | . . . . . . . . . . . . . . . . . . . . . 8 . . . . . . . . . . . . Rewire 111 | . . . . . . . . . . . . . . 9 . . 3 . . . 3 . . . 43 . . . . 53 . . . Trap 5 | . . . . . . . . . . . . . . . . . . . . 5 . . . . . . . . . . . . . Miscellaneous . | . . . . . . . . . . . . . . . . . . . . . . . . . . . . . . . . . . Route ------- -11/Scrapyard -10/Materials (discovered 4 exits: *Mat x3 / [*Min]) -9/Materials (discovered 4 exits: *Mat x3 / *Min) -9/Mines (discovered 3 exits: *Mat x2 / *Exi) -9/Exiles -8/Mines (discovered 2 exits: *Mat x2) -8/Materials (discovered 2 exits: *Fac x2) -7/Factory (discovered 5 exits: *Fac / *Sto x2 / *Low x2) -7/Lower Caves -7/Lower Caves (discovered 2 exits: *Fac / *Dat) -7/Data Miner -6/Proximity Caves -6/Factory (discovered 3 exits: *Fac / *Low x2) -6/Lower Caves -6/Lower Caves (discovered 2 exits: *Fac / *Zio) -6/Zion -5/Proximity Caves -5/Factory (discovered 2 exits: *Upp x2) -5/Upper Caves -5/Upper Caves (discovered 2 exits: *Fac / *War) -5/Warlord -4/Proximity Caves -4/Factory -4/Waste -4/Factory (discovered 2 exits: *Res / *Ext) -4/Extension (discovered 3 exits: *Res x2 / *Cet) -4/Cetus -4/Archives (discovered 2 exits: *Res / *Hub) -4/Hub_04(d) -3/Research (discovered 2 exits: *Arm / Tes) -3/Armory (discovered 2 exits: [Res] / *Lab) -3/Lab -2/Research -1/Access (discovered 2 exits: [*Sur] / [*Com]) To Epsilon Eridani History --------- Turn | Location | Event 5 | -11/Scrapyard | Discovered new exit (range 12) 10 | -11/Scrapyard | Entered Materials 95 | -10/Materials | Central database locked down 305 | -10/Materials | Build established: Mutant 393 | -10/Materials | Discovered new exit (range 15) 620 | -10/Materials | Discovered new exit (range 15) 807 | -10/Materials | Discovered new exit (range 16) 974 | -10/Materials | Discovered new exit (range 11) 1436 | -10/Materials | Entered another Materials area 1436 | -9/Materials | Evolved 2 slots: Utility x2 2097 | -9/Materials | Discovered new exit (range 8) 2335 | -9/Materials | Identified exit to Mines 2380 | -9/Materials | Discovered new exit (range 8) 2399 | -9/Materials | Central database locked down 2617 | -9/Materials | Lost 3 parts (1u2w) 2851 | -9/Materials | Discovered new exit (range 3) 3036 | -9/Materials | First assault squad dispatched 3497 | -9/Materials | Entered Mines 3551 | -9/Mines | Discovered new exit (range 11) 3767 | -9/Mines | Assembled infested the area 3861 | -9/Mines | Met 8R-AWN 3868 | -9/Mines | Received a Rocket Launcher from a helpful Derelict 4025 | -9/Mines | Discovered new exit (range 8) 4087 | -9/Mines | Received a Mining Laser from a helpful Derelict 4169 | -9/Mines | Assisted by bots powering up and referring to "LRC-V3" 4469 | -9/Mines | Discovered new exit (range 5) 4486 | -9/Mines | Entered Exiles 4486 | -9/Exiles | Accompanied by 3 allies 4516 | -9/Exiles | Led the pair of lost Derelicts to a safe place 4523 | -9/Exiles | Welcomed by 8R-AWN 4546 | -9/Exiles | Met EX-HEX 4610 | -9/Exiles | Learned location of Zion (-6) 4613 | -9/Exiles | Met EX-DEC 4634 | -9/Exiles | Met EX-BIN 4655 | -9/Exiles | Aligned with FarCom system 4656 | -9/Exiles | Given EX-Vault access code 4689 | -9/Exiles | Opened EX-Vault 4723 | -9/Exiles | Warned to stay clear of 0b10 Research branches 4816 | -9/Exiles | Discovered new exit (range 10) 4827 | -9/Exiles | Entered Mines 4827 | -8/Mines | Accompanied by 1 ally 4893 | -8/Mines | Discovered new exit (range 5) 5229 | -8/Mines | Discovered new exit (range 15) 5492 | -8/Mines | Entered Materials 5492 | -8/Materials | Evolved 2 slots: Propulsion x1, Utility x1 6703 | -8/Materials | Discovered new exit (range 4) 7092 | -8/Materials | First assault squad dispatched 8340 | -8/Materials | Sterilization system engaged 8340 | -8/Materials | Non-combat units ordered to evacuate 8377 | -8/Materials | Destroyed 9 combat bots 8440 | -8/Materials | Combat units ordered to evacuate 8640 | -8/Materials | Ambient heat levels rising (+10) 8713 | -8/Materials | Discovered new exit (range 13) 8790 | -8/Materials | Ambient heat levels rising (+10) 8940 | -8/Materials | Ambient heat levels rising (+10) 9074 | -8/Materials | Entered Factory 9074 | -7/Factory | Evolved 2 slots: Propulsion x1, Utility x1 9148 | -7/Factory | Garrison activated, responded to threat 9753 | -7/Factory | Discovered new exit (range 14) 9781 | -7/Factory | Identified exit to Storage 10106 | -7/Factory | Build established: Skirmisher 10430 | -7/Factory | Discovered new exit (range 16) 10453 | -7/Factory | Identified exit to Factory 10674 | -7/Factory | First assault squad dispatched 10862 | -7/Factory | Cargo convoy interrupted 11084 | -7/Factory | Lost 5 parts (2n3u) 11094 | -7/Factory | Identified exit to Lower Caves 11101 | -7/Factory | Destroyed 7 combat bots 11274 | -7/Factory | Entered Lower Caves 11315 | -7/Lower Caves | Build established: Mutant 11346 | -7/Lower Caves | Acquired the password to a Derelict Tinkerer's latest research 11586 | -7/Lower Caves | Caught by Unaware searching for contraband prototypes 11954 | -7/Lower Caves | Caught by Unaware searching for contraband prototypes 12439 | -7/Lower Caves | Attracted the attention of an 0b10 checkpoint 12499 | -7/Lower Caves | Discovered new exit (range 15) 12707 | -7/Lower Caves | Spotted B-75 Beast 12715 | -7/Lower Caves | Identified exit to Lower Caves 12716 | -7/Lower Caves | Entered another Lower Caves area 12719 | -7/Lower Caves | Ambushed by wild Derelicts 12873 | -7/Lower Caves | Discovered exit to Factory (range 14) 12943 | -7/Lower Caves | Encountered a Warlord checkpoint 13698 | -7/Lower Caves | Discovered new exit (range 7) 13715 | -7/Lower Caves | Identified exit to Data Miner 14259 | -7/Lower Caves | Attracted the attention of an 0b10 base 14478 | -7/Lower Caves | Learned Armory security intel 14478 | -7/Lower Caves | Learned location of 2 exits from Upper Caves 14566 | -7/Lower Caves | Attracted the attention of an 0b10 checkpoint 14578 | -7/Lower Caves | Core integrity fell below 50% 14713 | -7/Lower Caves | Entered Data Miner 14713 | -7/Data Miner | Discovered new exit (range 6) 14735 | -7/Data Miner | Met Data Miner 14755 | -7/Data Miner | Acquired the access code to Warlord's prototype stash 14755 | -7/Data Miner | Learned location of Section 7 (-2) 14772 | -7/Data Miner | Received God Mode back door access code from Data Miner 14797 | -7/Data Miner | Identified exit to Proximity Caves 14799 | -7/Data Miner | Entered Proximity Caves 14850 | -6/Proximity Caves | Escorted by Enhanced Grunt 15064 | -6/Proximity Caves | Attracted the attention of an 0b10 checkpoint 15966 | -6/Proximity Caves | Discovered exit to Factory (range 13) 15996 | -6/Proximity Caves | Entered Factory 15996 | -6/Factory | Evolved 2 slots: Power x1, Utility x1 15997 | -6/Factory | Identified exit to Lower Caves 16638 | -6/Factory | Discovered new exit (range 11) 16654 | -6/Factory | Identified exit to Factory 16768 | -6/Factory | Entered Lower Caves 17185 | -6/Lower Caves | Encountered a Warlord checkpoint 18141 | -6/Lower Caves | Discovered new exit (range 5) 18149 | -6/Lower Caves | Identified exit to Lower Caves 18288 | -6/Lower Caves | Attracted the attention of an 0b10 base 18411 | -6/Lower Caves | Learned Research stockpile data 18411 | -6/Lower Caves | Learned 8 Research zone layouts 18440 | -6/Lower Caves | Entered another Lower Caves area 18522 | -6/Lower Caves | Discovered exit to Factory (range 13) 18810 | -6/Lower Caves | Attracted the attention of an 0b10 outpost 18904 | -6/Lower Caves | Lost 3 parts (1p2u) 18919 | -6/Lower Caves | Destroyed 7 combat bots 19703 | -6/Lower Caves | Encountered a Warlord checkpoint 19806 | -6/Lower Caves | Discovered new exit (range 9) 19918 | -6/Lower Caves | Identified exit to Zion 19920 | -6/Lower Caves | Entered Zion 19920 | -6/Zion | Accompanied by 1 ally 19965 | -6/Zion | Discovered new exit (range 9) 20041 | -6/Zion | Given A8's code to call for help 20196 | -6/Zion | Given the Hacking Drone Bay 20197 | -6/Zion | Found Prototype Device 20198 | -6/Zion | Identified Hacking Drone Bay 20260 | -6/Zion | Found CR-A16's Pointy Stick 20322 | -6/Zion | Visited the Megawrench Repair Shop 20462 | -6/Zion | Learned location of Armory (-3) 20656 | -6/Zion | Megawrench repaired 9 parts 20752 | -6/Zion | Rebuked by Imprinter 20834 | -6/Zion | Enhanced Grunt warped into view, answering call for help 20835 | -6/Zion | Enhanced Grunt warped into view, answering call for help 21007 | -6/Zion | Identified exit to Proximity Caves 21016 | -6/Zion | Entered Proximity Caves 21016 | -5/Proximity Caves | Accompanied by 3 allies 21619 | -5/Proximity Caves | Discovered exit to Factory (range 8) 21777 | -5/Proximity Caves | Entered Factory 21777 | -5/Factory | Accompanied by 2 allies 21777 | -5/Factory | Evolved 2 slots: Utility x2 21778 | -5/Factory | Identified exit to Upper Caves 22081 | -5/Factory | Incoming assault squad redirected 22377 | -5/Factory | First assault squad dispatched 22395 | -5/Factory | Incoming assault squad redirected 22462 | -5/Factory | Entered Upper Caves 22463 | -5/Upper Caves | Identified exit to Upper Caves 22759 | -5/Upper Caves | Attracted the attention of an 0b10 checkpoint 23325 | -5/Upper Caves | Entered another Upper Caves area 23326 | -5/Upper Caves | Identified exit to Factory 23326 | -5/Upper Caves | Identified exit to Warlord 23594 | -5/Upper Caves | Attracted the attention of an 0b10 checkpoint 24229 | -5/Upper Caves | Entered Warlord 24463 | -5/Warlord | Learned Armory stockpile data 24464 | -5/Warlord | Learned 4 Research zone layouts 24465 | -5/Warlord | Learned Factory garrison access intel 24848 | -5/Warlord | Visited the Vortex Lab 24852 | -5/Warlord | Warlord's base attacked by MAIN.C 24979 | -5/Warlord | Met Warlord 24991 | -5/Warlord | Opened Warlord's prototype stash 25202 | -5/Warlord | Warlord forces counterattacked 25236 | -5/Warlord | Spotted Executioner 25246 | -5/Warlord | Destroyed Executioner 25253 | -5/Warlord | Spotted Striker 25265 | -5/Warlord | Destroyed Striker 25272 | -5/Warlord | Spotted B-86 Titan 25280 | -5/Warlord | Destroyed B-75 Beast 25301 | -5/Warlord | Destroyed 8 combat bots 25315 | -5/Warlord | Discovered new exit (range 12) 25358 | -5/Warlord | Spotted Executioner 25360 | -5/Warlord | P-80 Master assimilated allied 8Z-65G(g) 25360 | -5/Warlord | Spotted Executioner 25390 | -5/Warlord | Identified exit to Proximity Caves 25391 | -5/Warlord | Entered Proximity Caves 25899 | -4/Proximity Caves | Attracted the attention of an 0b10 checkpoint 25965 | -4/Proximity Caves | Spotted B-86 Titan 26026 | -4/Proximity Caves | Revealed the true nature of CR-A16's Pointy Stick 26029 | -4/Proximity Caves | Destroyed B-86 Titan 26052 | -4/Proximity Caves | Lost 7 parts (1p2n3u1w) 26200 | -4/Proximity Caves | Discovered exit to Factory (range 10) 26346 | -4/Proximity Caves | Entered Factory 26346 | -4/Factory | Accompanied by 2 allies 26346 | -4/Factory | Evolved 2 slots: Utility x2 26347 | -4/Factory | Identified exit to Upper Caves 26348 | -4/Factory | Loaded intel: 4 garrison access locations 26568 | -4/Factory | Sucked down chute 26568 | -4/Factory | Entered Waste 26575 | -4/Waste | Spotted C-40 Crusher 26582 | -4/Waste | Spotted C-40 Crusher 26583 | -4/Waste | EMP discharged 26615 | -4/Waste | 2 allies followed down the chute 26616 | -4/Waste | Spotted C-40 Crusher 26616 | -4/Waste | Spotted C-40 Crusher 26625 | -4/Waste | Spotted C-40 Crusher 26628 | -4/Waste | Allies destroyed C-40 Crusher 26631 | -4/Waste | Allies destroyed C-40 Crusher 26683 | -4/Waste | EMP discharged 26683 | -4/Waste | System corruption reached 10% 26694 | -4/Waste | Destroyed C-40 Crusher 26713 | -4/Waste | Discovered new exit (range 10) 26723 | -4/Waste | Identified exit to Factory 26724 | -4/Waste | Entered Factory 26724 | -4/Factory | Accompanied by 1 ally 26898 | -4/Factory | Spotted B-86 Titan 26911 | -4/Factory | Incoming investigation squad redirected 26974 | -4/Factory | First assault squad dispatched 27001 | -4/Factory | Incoming assault squad redirected 27146 | -4/Factory | Incoming investigation squad redirected 27203 | -4/Factory | Incoming investigation squad redirected 27250 | -4/Factory | Incoming assault squad redirected 27528 | -4/Factory | Incoming assault squad redirected 27556 | -4/Factory | Garrison activated, responded to threat 27661 | -4/Factory | Incoming assault squad redirected 27679 | -4/Factory | High security lockdown imminent 27687 | -4/Factory | Lost 5 parts (2p2n1w) 27704 | -4/Factory | Destroyed 9 combat bots 27759 | -4/Factory | High security lockdown engaged 27799 | -4/Factory | Found Launcher Loader 27800 | -4/Factory | Found Quantum Capacitor 27844 | -4/Factory | Destroyed 11 combat bots 27947 | -4/Factory | Destroyed 9 combat bots 27975 | -4/Factory | Discovered new exit (range 13) 28050 | -4/Factory | Destroyed 19 combat bots 28054 | -4/Factory | Identified exit to Research 28085 | -4/Factory | Destroyed 8 combat bots 28197 | -4/Factory | Destroyed 30 combat bots 28284 | -4/Factory | Destroyed 9 combat bots 28325 | -4/Factory | Sterilization system engaged 28325 | -4/Factory | Non-combat units ordered to evacuate 28367 | -4/Factory | Destroyed 27 combat bots 28389 | -4/Factory | Discovered new exit (range 14) 28414 | -4/Factory | Identified exit to Extension 28425 | -4/Factory | Combat units ordered to evacuate 28625 | -4/Factory | Ambient heat levels rising (+10) 28775 | -4/Factory | Ambient heat levels rising (+10) 28925 | -4/Factory | Ambient heat levels rising (+10) 29075 | -4/Factory | Ambient heat levels rising (+10) 29225 | -4/Factory | Ambient heat levels rising (+10) 29288 | -4/Factory | Entered Extension 29349 | -4/Extension | Rescued a captive Derelict 29464 | -4/Extension | Energy Cycler disabled 29465 | -4/Extension | Rescued a captive Derelict 29465 | -4/Extension | Rescued a captive Derelict 29465 | -4/Extension | Rescued a captive Derelict 29466 | -4/Extension | Rescued a captive Derelict 29466 | -4/Extension | Rescued a captive Derelict 29469 | -4/Extension | Rescued a captive Derelict 29473 | -4/Extension | High security lockdown imminent 29473 | -4/Extension | Rescued a captive Derelict 29553 | -4/Extension | High security lockdown engaged 29733 | -4/Extension | Destroyed 16 combat bots 29763 | -4/Extension | Disrupted transfer network 29814 | -4/Extension | Destroyed 20 combat bots 29859 | -4/Extension | Discovered exit to Research (range 15) 29927 | -4/Extension | Destroyed 38 combat bots 30070 | -4/Extension | Destroyed 35 combat bots 30079 | -4/Extension | Found Launcher Loader 30092 | -4/Extension | Disrupted transfer network 30110 | -4/Extension | Discovered new exit (range 16) 30112 | -4/Extension | Discovered exit to Research (range 15) 30122 | -4/Extension | Destroyed 15 combat bots 30124 | -4/Extension | Sterilization system engaged 30124 | -4/Extension | Non-combat units ordered to evacuate 30224 | -4/Extension | Combat units ordered to evacuate 30257 | -4/Extension | Identified exit to Cetus 30259 | -4/Extension | Entered Cetus 30279 | -4/Cetus | Spotted Cetus Guard 30279 | -4/Cetus | Spotted Cetus Guard 30282 | -4/Cetus | Destroyed Cetus Guard 30282 | -4/Cetus | Spotted Cetus Guard 30284 | -4/Cetus | Spotted Cetus Guard 30301 | -4/Cetus | Destroyed Cetus Guard 30303 | -4/Cetus | Destroyed Cetus Guard 30309 | -4/Cetus | Destroyed Cetus Guard 30374 | -4/Cetus | Cetus Manufacturing Module disabled 30406 | -4/Cetus | Discovered new exit (range 16) 30428 | -4/Cetus | Identified exit to Archives 30430 | -4/Cetus | Entered Archives 30588 | -4/Archives | Discovered exit to Research (range 14) 30607 | -4/Archives | Discovered new exit (range 15) 30703 | -4/Archives | Identified exit to Hub_04(d) 31804 | -4/Archives | Entered Hub_04(d) 32554 | -4/Hub_04(d) | First assault squad dispatched 32650 | -4/Hub_04(d) | Destroyed 8 combat bots 32821 | -4/Hub_04(d) | Incoming assault squad redirected 32908 | -4/Hub_04(d) | Incoming investigation squad redirected 32965 | -4/Hub_04(d) | Incoming assault squad redirected 33146 | -4/Hub_04(d) | Incoming assault squad redirected 33168 | -4/Hub_04(d) | Lost 3 parts (1u2w) 33172 | -4/Hub_04(d) | Destroyed 10 combat bots 33172 | -4/Hub_04(d) | Network Hub disabled 33229 | -4/Hub_04(d) | Incoming investigation squad redirected 33304 | -4/Hub_04(d) | Discovered exit to Research (range 5) 33330 | -4/Hub_04(d) | Spotted Lightning 33333 | -4/Hub_04(d) | Spotted Lightning 33335 | -4/Hub_04(d) | Spotted Lightning 33336 | -4/Hub_04(d) | Entered Research 33336 | -3/Research | Evolved 2 slots: Power x1, Utility x1 33337 | -3/Research | Identified exit to Testing 33582 | -3/Research | Discovered new exit (range 13) 33634 | -3/Research | Build established: Generator-Mutant 33639 | -3/Research | Entered Armory 33659 | -3/Armory | Lost 4 parts (4u) 33888 | -3/Armory | Destroyed 7 combat bots 34064 | -3/Armory | Lost 3 parts (1n1u1w) 34439 | -3/Armory | First assault squad dispatched 34459 | -3/Armory | Incoming assault squad redirected 34502 | -3/Armory | Discovered new exit (range 9) 34513 | -3/Armory | Discovered new exit (range 11) 34617 | -3/Armory | Entered Lab 34618 | -3/Lab | Discovered new exit (range 9) 34644 | -3/Lab | Unable to decrypt terminal 34694 | -3/Lab | Entered Research 34694 | -2/Research | Warlord forces began assault on 0b10 34694 | -2/Research | Evolved 2 slots: Power x1, Weapon x1 34804 | -2/Research | Research machine network offline 35047 | -2/Research | Spotted B-90 Cyclops 35052 | -2/Research | Destroyed B-90 Cyclops 35053 | -2/Research | Discovered new exit (range 16) 35072 | -2/Research | Identified exit to Access 35125 | -2/Research | Entered Access 35125 | -1/Access | Evolved 2 slots: Utility x2 35356 | -1/Access | Build established: Generator-Assassin 35748 | -1/Access | Discovered new exit (range 23) 36001 | -1/Access | Discovered new exit (range 20) 36121 | -1/Access | Spotted B-99 Colossus 36121 | -1/Access | Spotted B-99 Colossus 36128 | -1/Access | Destroyed B-99 Colossus 36177 | -1/Access | Destroyed B-99 Colossus 36206 | -1/Access | Lost 3 parts (1p2u) 36325 | -1/Access | Spotted B-99 Colossus 36438 | -1/Access | Spotted B-99 Colossus 36462 | -1/Access | Destroyed B-99 Colossus 36475 | -1/Access | Destroyed B-99 Colossus 36476 | -1/Access | Build established: Generator-Mutant 36639 | *** | Escaped! Last Messages --------------- [Congratulations on your very own Enh. Quantum Rifle!] [You open your loot box...] [Congratulations on your very own Quantum Reactor!] [You open your loot box...] [Congratulations on your very own Exp. Transmission Jammer!] [You open your loot box...] [Congratulations on your very own Exp. Transmission Jammer!] [You open your loot box...] [Congratulations on your very own Cld. Linear Gravjet!] [You open your loot box...] [Congratulations on your very own Enh. Nova Cannon!] [You open your loot box...] [Congratulations on your very own Ragnarok Missile Launcher!] [You open your loot box...] [Congratulations on your very own Exp. Reaction Control System!] 36625_ ALERT: Rogue bot located, Programmers report to Access Zone 3H. [You open your loot box...] [Congratulations on your very own Biometal Heavy Treads!] [You open your loot box...] [Congratulations on your very own Exp. Actuator Array!] Map ----- +----------------------------------------------------+ | ?????????????????????????????????????????????????? | | ?????????????????????????????????????????????????? | | ?????????????????????????????????????????????????? | | ?????????????????????????????????????????????????? | | ?????????????????????????????????????????????????? | | ??#??????????????????????????????????????????????? | | ???#?????????????????????????????????????????????? | | #?#??????????????????????????????????????????????? | | ?????????????????????????????????????????????????? | | #????????????????????????????????????????????????? | | ? ? ????????????????????????????????????????????? | | ????????????????????????????????????????????????? | | ??? ????????????????????????????????????????????? | | ?? ?? ?????????????????????????????????????????? | | ? ? ???????????????????????????????ggg?????????? | | ? ???????????????????????????????b???????????? | | ? ??????????????????????????????????????????????? | | ?????#????????????????????????????????????????? ? | | ? ?####?#?? ?????????????????????????????????? ?? | | #####?##???####???"###????###??#########???? ?? | | ""#####?##? ?"""?""?" ???? "??" #???? ?? | | ""#####?### ?"?"?"??" ???? *"??" #????% ?? | | T"#########??? ?? " """"""="??" #####+##? | | ""#########? ? ?? ?" "!!*!"]"??" % ## | | ?"#########? ? ??" "]*=*"]"??" % %% ## | | ####??### ? ? " "!@]*"="??" % % %%% | | ?####?#### ? " =[=="]"??" #" | | ?########## ? ?? " """""**"?"" % ##" %#? | | ??######### ? ?" !==%%""" ##"% #? | | ######?#### ? " = ### ## | | ##?#####?## #######"####################### % | | ####??##### s##?##########?##?######?####??# | | ########### ######??####?######?#####?##### | | ########### ####?#############??####?#???## "" | | ########?## #######?#############?#####?### ""T | | #########?# p########??#####??######?#####?# "" | | ########?##p #########?##################### | | ########### ? | | ########### ? ? w ? | | # # ###/#############+###?## ^ | | # # # ##?###### ? ## | | # # # #####?### ## " | | " / # ######### ## "" | | # # # ######### ## " | | # # # ##?##?### ?# | | # # " ######### ? ## | | # # # ## # ? ## | | ########### # ## # ? ## | | ##### ##### # ## # ## ####+#### | | ##### #??## # "" # ? ?# # ? | +----------------------------------------------------+ Best States ------------- Heat Dissipation 164 Coolant Potential 100 Energy Generation 93 Energy Capacity 1090 Matter Stores 300 Matter Capacity 300 Sight Range 16 Robot Scan Range 15 Terrain Scan Range 24 Terrain Scan Density 210 Jamming Range 16 Cloak Strength 4 Armor Coverage 1200 Resistance: KI 30 Resistance: EM 25 Evasion (%) 50 Targeting Accuracy 28 Core Analysis 8 Recoil Reduction 4 Energy Filtering 50 Offensive Hacking 11 Item Schematics ----------------- Trap Scanner | -8/Materials | Extracted Minigun | -8/Materials | Extracted Hrd. Heavy Armor Plating | -8/Materials | Scanalyzed Combat Drone Bay | -7/Data Miner | Free Lgt. Regenerative Plating | -7/Data Miner | Free Cld. Cesium-ion Thruster | -7/Data Miner | Free Gravity Neutralizer | -7/Data Miner | Free Ion Burst Cannon | -7/Data Miner | Free Linear Gravjet | -7/Data Miner | Free Adv. Cooling System | -7/Data Miner | Free Hvy. Phase Cannon | -7/Data Miner | Free Imp. Recalibrator | -7/Data Miner | Free Hyp. Gauss Cannon | -7/Data Miner | Free Graphene Brace | -7/Data Miner | Free Micro-nuke Launcher | -7/Data Miner | Free Robot Schematics ------------------ Y-54 Guardian | -7/Data Miner | Free R-10 Processor | -7/Data Miner | Free M-14 Sweeper | -7/Data Miner | Free S-27 Virus | -7/Data Miner | Free M-22 Extractor | -7/Data Miner | Free L-41 Fighter | -7/Data Miner | Free Fabricated ------------ Nothing Alien Tech Used ----------------- None Achievements -------------- Cannon Specialist Challenges ------------ None Cogshop Purchases (178) ------------------------- Imp. Treads (874) Imp. Treads (874) Imp. Light Cannon (769) Imp. Light Cannon (769) Med. Armor Plating (699) Hpw. Tractor Beam (739) Med. Armor Plating (754) Adv. Treads (960) Adv. Treads (1015) Assault Cannon (1049) Assault Cannon (1049) Hvy. Armor Plating (825) Nuclear Core (705) Hvy. Armor Plating (745) Cooling System (779) Flak Cannon (1123) Disposable Heat Sink (779) Aluminum Leg (646) Imp. Sensor Array (670) Lrn. Tractor Beam (670) Hvy. Flail (363) Hrd. Heavy Armor Plating (1101) Imp. Deuterium Engine (987) Hrd. Heavy Armor Plating (567) Hrd. Heavy Armor Plating (567) Med. Treads (1395) Med. Treads (1754) Gauss Cannon (926) Gauss Cannon (1120) Gauss Cannon (1120) Med. Treads (1945) Hvy. Deuterium Engine (796) Imp. Cooling System (702) Imp. Cooling System (636) Arm. Huge Wheel (821) Force Field (1079) Med. Reactive Plating (1762) Adv. Terrain Scanner (933) Adv. Signal Interpreter (660) Cld. Plasma Cannon (913) Magnetic Acceleration Cannon (1280) Magnetic Acceleration Cannon (1313) Imp. Medium Treads (1580) Imp. Medium Treads (1968) Imp. Medium Armor Plating (2213) Hvy. Flak Cannon (1432) Imp. Medium Treads (2200) Lrn. Tractor Beam (943) Magnetic Acceleration Cannon (783) Imp. System Restoration Module (1427) Imp. Heavy Armor Plating (1638) Angular Momentum Engine (1047) Cld. Plasma Cannon (440) Arm. Huge Wheel (1074) Mak. Transmission Jammer (1913) Imp. Heavy Armor Plating (1641) Hvy. Treads (1540) F-cell Engine (844) Enh. Fission Core (819) Adv. Shield Generator (1587) Lyr. Heavy Armor Plating (1469) Adv. Cooling System (1768) Imp. System Restoration Module (1608) Arm. Huge Wheel (1075) Enh. Fission Core (1045) Lyr. Heavy Armor Plating (1482) Adv. Shield Generator (1909) Arm. Huge Wheel (1106) Exp. Signal Interpreter (1428) Exp. Targeting Computer (2381) Quantum Capacitor (1645) Hvy. Neutron Cannon (1242) Adv. Cooling System (1475) Adv. Coolant Injector (2098) Imp. Heavy Armor Plating (1019) Arm. Huge Wheel (1405) Arm. Huge Wheel (1405) Imp. Heavy Armor Plating (986) Quantum Capacitor (2138) Particle Reactor (1566) Particle Reactor (1680) Imp. Matter Neutralizer (1276) Adv. Force Field (2284) Com. HERF Cannon (1461) Coolant Network (2065) Adv. System Restoration Module (2165) Centrium Heavy Armor Plating (2559) Adv. Targeting Computer (527) Adv. Targeting Computer (623) Particle Reactor (1476) Particle Reactor (1476) Imp. Heavy Siege Treads (1485) Imp. Heavy Siege Treads (1485) Tiamat Missile Launcher (2184) Launcher Loader (2485) Adv. System Restoration Module (3228) Exp. Signal Interpreter (847) Imp. Matter Neutralizer (1595) Centrium Heavy Armor Plating (2554) Lrn. Tractor Beam (2735) Particle Reactor (1661) Adv. Force Field (4785) Particle Reactor (1786) Tiamat Missile Launcher (2680) Centrium Heavy Treads (1526) Launcher Loader (2898) Centrium Heavy Treads (1753) Lyr. Heavy Armor Plating (993) Com. HERF Cannon (1370) Particle Reactor (1449) Adv. Transmission Jammer (1890) Lrn. Tractor Beam (1383) Exp. Cooling System (2074) Exp. Cooling System (2074) Lyr. Heavy Armor Plating (849) Particle Reactor (1352) Adv. Heavy Treads (1301) Adv. Force Field (3491) Nova Cannon (1370) EM Disruption Field (2686) Imp. Quantum Reactor (1663) Mak. Terrain Scanner (3098) Adv. Terrain Scan Processor (674) Exp. Shield Generator (6994) Lyr. Heavy Armor Plating (756) Quantum Capacitor (3228) Exp. Energy Well (1371) Prc. Energy Filter (3318) Com. HERF Cannon (1214) Imp. System Restoration Module (2076) Lrn. Terrain Scanner (2491) Exp. Targeting Computer (1716) Exp. Core Analyzer (1201) Adv. Force Field (2698) Enh. Nova Cannon (1615) Graviton Cannon (3029) Graviton Cannon (3029) Graviton Reactor (2701) Centrium Heavy Armor Plating (1903) Biometal Heavy Treads (1801) Adv. Signal Interpreter (975) Mak. Hacking Suite (1007) Energy Filter (1399) Adv. System Restoration Module (1710) Quantum Reactor (1192) Quantum Reactor (1192) Adv. Targeting Computer (747) Biometal Heavy Treads (1547) Biometal Heavy Treads (Loot Box) Exp. Cloaking Device (Loot Box) Biometal Heavy Treads (Loot Box) Graviton Cannon (Loot Box) Graviton Cannon (Loot Box) Lgt. Quantum Reactor (Loot Box) Point Singularity Launcher (Loot Box) Rnf. Quantum Reactor (Loot Box) Exp. Force Field (Loot Box) Cmb. Linear Gravjet (Loot Box) Centrium Leg (Loot Box) Lgt. Quantum Reactor (Loot Box) Cmb. Linear Gravjet (Loot Box) Lgt. Quantum Reactor (Loot Box) Enh. Nova Cannon (Loot Box) Lgt. Quantum Reactor (Loot Box) Adv. Heavy Siege Treads (Loot Box) Biometal Heavy Treads (Loot Box) Exp. Force Field (Loot Box) Quantum Reactor (Loot Box) Enh. Quantum Rifle (Loot Box) Quantum Reactor (Loot Box) Exp. Transmission Jammer (Loot Box) Exp. Transmission Jammer (Loot Box) Cld. Linear Gravjet (Loot Box) Enh. Nova Cannon (Loot Box) Ragnarok Missile Launcher (Loot Box) Exp. Reaction Control System (Loot Box) Biometal Heavy Treads (Loot Box) Exp. Actuator Array (Loot Box) Game ------ Seed AccelerationEtherialBoregun Manual? 0 Play Time 07:44:04 Cumulative 352.7 hours Start 2022.09.17 @ 06:49:55 End 2022.09.19 @ 14:58:02 Sessions 21 Manual Loads 0 Difficulty Rogue Special Mode AFD2019/Pay2Buy Game No. 55 Rogue 48 Adventurer 1 Explorer 6 Win Type 0 Total 24 Types 7/3/7/1/1/1/2/1/1 Lore% 90 Gallery% 90 Achievement% 77 Wizard Run 0 Options --------- ASCII 0 Keyboard 0 Movement Mouse Keybinds 0 Fullscreen 1 Font 18/SmallcapsGlow Map View 76x50 Tactical HUD 1 Map Filters NONE Filters NONE Steam 1 RUN: eae647d2-4d72-4133-889e-695bc9ad3be0